Workbook

Sheet Post-operative wound care
D1: Redbridge
D2: Post-Operative Wound Care
D3: 01/04/2021 - 31/03/2022 | E3: Q4
D4: =INDEX('Control Panel'!$E$2:$E$17,COLUMN(A1)) -> Currently Registered Regular Patients | E4: =INDEX('Control Panel'!$E$2:$E$17,COLUMN(B1)) -> POWC 01 Post-operative wound care 2022 | F4: =INDEX('Control Panel'!$E$2:$E$17,COLUMN(C1)) -> 0 | G4: =INDEX('Control Panel'!$E$2:$E$17,COLUMN(D1)) -> POWC 01 Post-operative wound care activity | H4: =INDEX('Control Panel'!$E$2:$E$17,COLUMN(E1)) -> 0 | I4: =INDEX('Control Panel'!$E$2:$E$17,COLUMN(F1)) -> POWC 0101 Referral to tissue viability service | K4: =INDEX('Control Panel'!$E$2:$E$17,COLUMN(G1)) -> POWC 0102 Refer to district nurse | L4: =INDEX('Control Panel'!$E$2:$E$17,COLUMN(H1)) -> POWC 0103 Orthopaedic referral | P4: =INDEX('Control Panel'!$E$2:$E$17,COLUMN(I1)) -> POWC 0104 Advice given about wound care
D5: =INDEX('Control Panel'!$F$2:$F$10,COLUMN(A1)) -> Currently Registered Regular Patients | E5: =INDEX('Control Panel'!$F$2:$F$10,COLUMN(B1)) -> Patients with Post-operative wound care 2022-23 | F5: % | G5: =INDEX('Control Panel'!$F$2:$F$10,COLUMN(D1)) -> Post-operative wound care activity recorded 2022-23 | H5: % | I5: =INDEX('Control Panel'!$F$2:$F$10,COLUMN(F1)) -> Referral to tissue viability service | J5: % | K5: =INDEX('Control Panel'!$F$2:$F$10,COLUMN(G1)) -> Refer to district nurse | L5: % | M5: =INDEX('Control Panel'!$F$2:$F$10,COLUMN(H1)) -> Orthopaedic referral | N5: % | O5: =INDEX('Control Panel'!$F$2:$F$10,COLUMN(I1)) -> Advice given about wound care | P5: %
A6: ='Control Panel'!A5 -> RB-1 | B6: ='Control Panel'!B5 -> Cranbrook | C6: L1 | D6: =SUMIFS(D$13:D$54,$A$13:$A$54,$A6) -> 53154 | E6: =SUMIFS(E$13:E$54,$A$13:$A$54,$A6) -> 246 | F6: =SUM(E6/D6) -> 0.004628061858 | G6: =SUMIFS(G$13:G$20,$A$13:$A$20,$A6) -> 410 | H6: =SUM(G6/D6) -> 0.00771343643 | I6: =SUMIFS(I$13:I$54,$A$13:$A$54,$A6) -> 6 | J6: =SUM(I6/E6) -> 0.0243902439 | K6: =SUMIFS(K$13:K$54,$A$13:$A$54,$A6) -> 9 | L6: =SUM(K6/E6) -> 0.03658536585 | M6: =SUMIFS(M$13:M$54,$A$13:$A$54,$A6) -> 22 | N6: =SUM(M6/E6) -> 0.08943089431 | O6: =SUMIFS(O$13:O$54,$A$13:$A$54,$A6) -> 161 | P6: =SUM(O6/E6) -> 0.6544715447
A7: ='Control Panel'!A6 -> RB-2 | B7: ='Control Panel'!B6 -> Fairlop | C7: L2 | D7: =SUMIFS(D$13:D$54,$A$13:$A$54,$A7) -> 45941 | E7: 268 | F7: =SUM(E7/D7) -> 0.005833569143 | G7: =SUMIFS(G$13:G$54,$A$13:$A$54,$A7) -> 888 | H7: =SUM(G7/D7) -> 0.01932913955 | I7: =SUMIFS(I$13:I$54,$A$13:$A$54,$A7) -> 2 | J7: =SUM(I7/E7) -> 0.007462686567 | K7: =SUMIFS(K$13:K$54,$A$13:$A$54,$A7) -> 6 | L7: =SUM(K7/E7) -> 0.0223880597 | M7: 23 | N7: =SUM(M7/E7) -> 0.08582089552 | O7: 163 | P7: =SUM(O7/E7) -> 0.6082089552
A8: ='Control Panel'!A7 -> RB-3 | B8: ='Control Panel'!B7 -> Seven Kings | C8: L3 | D8: 59108 | E8: 91 | F8: 0.001539554713 | G8: =SUMIFS(G$13:G$54,$A$13:$A$54,$A8) -> 247 | H8: 0.004178791365 | I8: 3 | J8: 0.03296703297 | K8: 5 | L8: 0.05494505495 | M8: 11 | N8: 0.1208791209 | O8: 26 | P8: 0.2857142857
A9: ='Control Panel'!A8 -> RB-4 | B9: ='Control Panel'!B8 -> Wanstead & Woodford | C9: L4 | D9: 82864 | E9: 464 | F9: 0.00559953659 | G9: 949 | H9: 0.01145250048 | I9: 2 | J9: 0.004310344828 | K9: 19 | L9: 0.04094827586 | M9: 42 | N9: 0.09051724138 | O9: 168 | P9: 0.3620689655
A10: ='Control Panel'!A9 -> RB-5 | B10: ='Control Panel'!B9 -> Loxford | D10: 75179 | E10: 150 | F10: 0.001995238032 | G10: 39 | H10: 0.0005187618883 | I10: 3 | J10: 0.02 | K10: 5 | L10: 0.03333333333 | M10: 5 | N10: 0.03333333333 | O10: 118 | P10: 0.7866666667
A11: ='Control Panel'!A10 -> RB-6 | B11: ='Control Panel'!B10 -> NewCross Alliance | D11: 34270 | E11: 101 | F11: 0.002947184126 | G11: =SUMIFS(G$13:G$54,$A$13:$A$54,$A11) -> 119 | H11: 0.003472424861 | I11: 0 | J11: 0 | K11: 3 | L11: 0.0297029703 | M11: 6 | N11: 0.05940594059 | O11: 8 | P11: 0.07920792079
B12: Redbridge | C12: Total | D12: =SUM(D13:D54) -> 350516 | E12: =SUM(E13:E54) -> 1320 | F12: =SUM(E12/D12) -> 0.003765876593 | G12: =SUM(G13:G54) -> 2652 | H12: =SUM(G12/D12) -> 0.007565988428 | I12: =SUM(I13:I54) -> 16 | J12: =SUM(I12/E12) -> 0.01212121212 | K12: =SUM(K13:K54) -> 47 | L12: =SUM(K11/E11) -> 0.0297029703 | M12: =SUM(M13:M54) -> 109 | N12: =SUM(M12/E12) -> 0.08257575758 | O12: =SUM(O13:O54) -> 644 | P12: =SUM(O12/E12) -> 0.4878787879
A13: RB-1 | B13: Drive Surgery | C13: F86652 | D13: =HLOOKUP($C13,'Composite Data'!$B$2:$AQ$9,MATCH('Post-operative wound care'!D$4,'Composite Data'!$A$2:$A$10,0),FALSE) -> 6917 | E13: =HLOOKUP($C13,'Composite Data'!$B$2:$AQ$9,MATCH('Post-operative wound care'!E$4,'Composite Data'!$A$2:$A$10,0),FALSE) -> 45 | F13: 0.006505710568 | G13: =HLOOKUP($C13,'Composite Data'!$B$2:$AQ$9,MATCH('Post-operative wound care'!G$4,'Composite Data'!$A$2:$A$10,0),FALSE) -> 92 | H13: 0.01330056383 | I13: =HLOOKUP($C13,'Composite Data'!$B$2:$AQ$9,MATCH('Post-operative wound care'!I$4,'Composite Data'!$A$2:$A$10,0),FALSE) -> 0 | J13: =IFERROR(SUM(I13/E13),"0.0"%) -> 0 | K13: =HLOOKUP($C13,'Composite Data'!$B$2:$AQ$9,MATCH('Post-operative wound care'!K$4,'Composite Data'!$A$2:$A$10,0),FALSE) -> 0 | L13: =IFERROR(SUM(K13/E13),"0.0%") -> 0 | M13: =HLOOKUP($C13,'Composite Data'!$B$2:$AQ$9,MATCH('Post-operative wound care'!L$4,'Composite Data'!$A$2:$A$10,0),FALSE) -> 6 | N13: =IFERROR(SUM(M13/E13),"0.0"%) -> 0.1333333333 | O13: =HLOOKUP($C13,'Composite Data'!$B$2:$AQ$9,MATCH('Post-operative wound care'!P$4,'Composite Data'!$A$2:$A$10,0),FALSE) -> 23 | P13: =IFERROR(SUM(O13/E13),"0.0"%) -> 0.5111111111
A14: RB-1 | B14: St Clements Surgery | C14: F86702 | D14: =HLOOKUP($C14,'Composite Data'!$B$2:$AQ$9,MATCH('Post-operative wound care'!D$4,'Composite Data'!$A$2:$A$10,0),FALSE) -> 5168 | E14: =HLOOKUP($C14,'Composite Data'!$B$2:$AQ$9,MATCH('Post-operative wound care'!E$4,'Composite Data'!$A$2:$A$10,0),FALSE) -> 2 | F14: 0.000386996904 | G14: =HLOOKUP($C14,'Composite Data'!$B$2:$AQ$9,MATCH('Post-operative wound care'!G$4,'Composite Data'!$A$2:$A$10,0),FALSE) -> 2 | H14: 0.000386996904 | I14: =HLOOKUP($C14,'Composite Data'!$B$2:$AQ$9,MATCH('Post-operative wound care'!I$4,'Composite Data'!$A$2:$A$10,0),FALSE) -> 0 | J14: =IFERROR(SUM(I14/E14),"0.0"%) -> 0 | K14: =HLOOKUP($C14,'Composite Data'!$B$2:$AQ$9,MATCH('Post-operative wound care'!K$4,'Composite Data'!$A$2:$A$10,0),FALSE) -> 0 | L14: =IFERROR(SUM(K14/E14),"0.0%") -> 0 | M14: =HLOOKUP($C14,'Composite Data'!$B$2:$AQ$9,MATCH('Post-operative wound care'!L$4,'Composite Data'!$A$2:$A$10,0),FALSE) -> 0 | N14: =IFERROR(SUM(M14/E14),"0.0"%) -> 0 | O14: =HLOOKUP($C14,'Composite Data'!$B$2:$AQ$9,MATCH('Post-operative wound care'!P$4,'Composite Data'!$A$2:$A$10,0),FALSE) -> 1 | P14: =IFERROR(SUM(O14/E14),"0.0"%) -> 0.5
A15: RB-1 | B15: Granville Medical Centre | C15: Y00918 | D15: =HLOOKUP($C15,'Composite Data'!$B$2:$AQ$9,MATCH('Post-operative wound care'!D$4,'Composite Data'!$A$2:$A$10,0),FALSE) -> 6583 | E15: =HLOOKUP($C15,'Composite Data'!$B$2:$AQ$9,MATCH('Post-operative wound care'!E$4,'Composite Data'!$A$2:$A$10,0),FALSE) -> 47 | F15: 0.007139602005 | G15: =HLOOKUP($C15,'Composite Data'!$B$2:$AQ$9,MATCH('Post-operative wound care'!G$4,'Composite Data'!$A$2:$A$10,0),FALSE) -> 91 | H15: 0.01382348473 | I15: =HLOOKUP($C15,'Composite Data'!$B$2:$AQ$9,MATCH('Post-operative wound care'!I$4,'Composite Data'!$A$2:$A$10,0),FALSE) -> 2 | J15: 0.04255319149 | K15: =HLOOKUP($C15,'Composite Data'!$B$2:$AQ$9,MATCH('Post-operative wound care'!K$4,'Composite Data'!$A$2:$A$10,0),FALSE) -> 6 | L15: 0.1276595745 | M15: =HLOOKUP($C15,'Composite Data'!$B$2:$AQ$9,MATCH('Post-operative wound care'!L$4,'Composite Data'!$A$2:$A$10,0),FALSE) -> 4 | N15: 0.08510638298 | O15: =HLOOKUP($C15,'Composite Data'!$B$2:$AQ$9,MATCH('Post-operative wound care'!P$4,'Composite Data'!$A$2:$A$10,0),FALSE) -> 43 | P15: 0.914893617
A16: RB-1 | B16: Balfour Road Surgery | C16: F86042 | D16: =HLOOKUP($C16,'Composite Data'!$B$2:$AQ$9,MATCH('Post-operative wound care'!D$4,'Composite Data'!$A$2:$A$10,0),FALSE) -> 6308 | E16: =HLOOKUP($C16,'Composite Data'!$B$2:$AQ$9,MATCH('Post-operative wound care'!E$4,'Composite Data'!$A$2:$A$10,0),FALSE) -> 46 | F16: 0.007292327204 | G16: =HLOOKUP($C16,'Composite Data'!$B$2:$AQ$9,MATCH('Post-operative wound care'!G$4,'Composite Data'!$A$2:$A$10,0),FALSE) -> 110 | H16: 0.01743817375 | I16: =HLOOKUP($C16,'Composite Data'!$B$2:$AQ$9,MATCH('Post-operative wound care'!I$4,'Composite Data'!$A$2:$A$10,0),FALSE) -> 4 | J16: 0.08695652174 | K16: =HLOOKUP($C16,'Composite Data'!$B$2:$AQ$9,MATCH('Post-operative wound care'!K$4,'Composite Data'!$A$2:$A$10,0),FALSE) -> 0 | L16: 0 | M16: =HLOOKUP($C16,'Composite Data'!$B$2:$AQ$9,MATCH('Post-operative wound care'!L$4,'Composite Data'!$A$2:$A$10,0),FALSE) -> 1 | N16: 0.02173913043 | O16: =HLOOKUP($C16,'Composite Data'!$B$2:$AQ$9,MATCH('Post-operative wound care'!P$4,'Composite Data'!$A$2:$A$10,0),FALSE) -> 42 | P16: 0.9130434783
A17: RB-1 | B17: Cranbrook Surgery | C17: F86698 | D17: =HLOOKUP($C17,'Composite Data'!$B$2:$AQ$9,MATCH('Post-operative wound care'!D$4,'Composite Data'!$A$2:$A$10,0),FALSE) -> 5183 | E17: =HLOOKUP($C17,'Composite Data'!$B$2:$AQ$9,MATCH('Post-operative wound care'!E$4,'Composite Data'!$A$2:$A$10,0),FALSE) -> 13 | F17: 0.002508199884 | G17: =HLOOKUP($C17,'Composite Data'!$B$2:$AQ$9,MATCH('Post-operative wound care'!G$4,'Composite Data'!$A$2:$A$10,0),FALSE) -> 21 | H17: 0.004051707505 | I17: =HLOOKUP($C17,'Composite Data'!$B$2:$AQ$9,MATCH('Post-operative wound care'!I$4,'Composite Data'!$A$2:$A$10,0),FALSE) -> 0 | J17: 0 | K17: =HLOOKUP($C17,'Composite Data'!$B$2:$AQ$9,MATCH('Post-operative wound care'!K$4,'Composite Data'!$A$2:$A$10,0),FALSE) -> 0 | L17: 0 | M17: =HLOOKUP($C17,'Composite Data'!$B$2:$AQ$9,MATCH('Post-operative wound care'!L$4,'Composite Data'!$A$2:$A$10,0),FALSE) -> 0 | N17: 0 | O17: =HLOOKUP($C17,'Composite Data'!$B$2:$AQ$9,MATCH('Post-operative wound care'!P$4,'Composite Data'!$A$2:$A$10,0),FALSE) -> 3 | P17: 0.2307692308
A18: RB-1 | B18: Gants Hill Medical Centre | C18: F86008 | D18: =HLOOKUP($C18,'Composite Data'!$B$2:$AQ$9,MATCH('Post-operative wound care'!D$4,'Composite Data'!$A$2:$A$10,0),FALSE) -> 11002 | E18: =HLOOKUP($C18,'Composite Data'!$B$2:$AQ$9,MATCH('Post-operative wound care'!E$4,'Composite Data'!$A$2:$A$10,0),FALSE) -> 52 | F18: 0.004726413379 | G18: =HLOOKUP($C18,'Composite Data'!$B$2:$AQ$9,MATCH('Post-operative wound care'!G$4,'Composite Data'!$A$2:$A$10,0),FALSE) -> 59 | H18: 0.005362661334 | I18: =HLOOKUP($C18,'Composite Data'!$B$2:$AQ$9,MATCH('Post-operative wound care'!I$4,'Composite Data'!$A$2:$A$10,0),FALSE) -> 0 | J18: 0 | K18: =HLOOKUP($C18,'Composite Data'!$B$2:$AQ$9,MATCH('Post-operative wound care'!K$4,'Composite Data'!$A$2:$A$10,0),FALSE) -> 3 | L18: 0.05769230769 | M18: =HLOOKUP($C18,'Composite Data'!$B$2:$AQ$9,MATCH('Post-operative wound care'!L$4,'Composite Data'!$A$2:$A$10,0),FALSE) -> 8 | N18: 0.1538461538 | O18: =HLOOKUP($C18,'Composite Data'!$B$2:$AQ$9,MATCH('Post-operative wound care'!P$4,'Composite Data'!$A$2:$A$10,0),FALSE) -> 49 | P18: 0.9423076923
A19: RB-1 | B19: Redbridge Surgery | C19: F86703 | D19: =HLOOKUP($C19,'Composite Data'!$B$2:$AQ$9,MATCH('Post-operative wound care'!D$4,'Composite Data'!$A$2:$A$10,0),FALSE) -> 3827 | E19: =HLOOKUP($C19,'Composite Data'!$B$2:$AQ$9,MATCH('Post-operative wound care'!E$4,'Composite Data'!$A$2:$A$10,0),FALSE) -> 25 | F19: 0.006532532009 | G19: =HLOOKUP($C19,'Composite Data'!$B$2:$AQ$9,MATCH('Post-operative wound care'!G$4,'Composite Data'!$A$2:$A$10,0),FALSE) -> 35 | H19: 0.009145544813 | I19: =HLOOKUP($C19,'Composite Data'!$B$2:$AQ$9,MATCH('Post-operative wound care'!I$4,'Composite Data'!$A$2:$A$10,0),FALSE) -> 0 | J19: 0 | K19: =HLOOKUP($C19,'Composite Data'!$B$2:$AQ$9,MATCH('Post-operative wound care'!K$4,'Composite Data'!$A$2:$A$10,0),FALSE) -> 0 | L19: 0 | M19: =HLOOKUP($C19,'Composite Data'!$B$2:$AQ$9,MATCH('Post-operative wound care'!L$4,'Composite Data'!$A$2:$A$10,0),FALSE) -> 3 | N19: 0.12 | O19: =HLOOKUP($C19,'Composite Data'!$B$2:$AQ$9,MATCH('Post-operative wound care'!P$4,'Composite Data'!$A$2:$A$10,0),FALSE) -> 0 | P19: 0
A20: RB-1 | B20: York Road Surgery | C20: F86657 | D20: =HLOOKUP($C20,'Composite Data'!$B$2:$AQ$9,MATCH('Post-operative wound care'!D$4,'Composite Data'!$A$2:$A$10,0),FALSE) -> 8166 | E20: =HLOOKUP($C20,'Composite Data'!$B$2:$AQ$9,MATCH('Post-operative wound care'!E$4,'Composite Data'!$A$2:$A$10,0),FALSE) -> 16 | F20: 0.00195934362 | G20: 0 | H20: 0 | I20: 0 | J20: 0 | K20: =HLOOKUP($C20,'Composite Data'!$B$2:$AQ$9,MATCH('Post-operative wound care'!K$4,'Composite Data'!$A$2:$A$10,0),FALSE) -> 0 | L20: 0 | M20: =HLOOKUP($C20,'Composite Data'!$B$2:$AQ$9,MATCH('Post-operative wound care'!L$4,'Composite Data'!$A$2:$A$10,0),FALSE) -> 0 | N20: 0 | O20: =HLOOKUP($C20,'Composite Data'!$B$2:$AQ$9,MATCH('Post-operative wound care'!P$4,'Composite Data'!$A$2:$A$10,0),FALSE) -> 0 | P20: 0
A21: RB-2 | B21: Kenwood Medical Centre | C21: F86081 | D21: =HLOOKUP($C21,'Composite Data'!$B$2:$AQ$9,MATCH('Post-operative wound care'!D$4,'Composite Data'!$A$2:$A$10,0),FALSE) -> 6340 | E21: =HLOOKUP($C21,'Composite Data'!$B$2:$AQ$9,MATCH('Post-operative wound care'!E$4,'Composite Data'!$A$2:$A$10,0),FALSE) -> 9 | F21: 0.00141955836 | G21: =HLOOKUP($C21,'Composite Data'!$B$2:$AQ$9,MATCH('Post-operative wound care'!G$4,'Composite Data'!$A$2:$A$10,0),FALSE) -> 12 | H21: 0.001892744479 | I21: =HLOOKUP($C21,'Composite Data'!$B$2:$AQ$9,MATCH('Post-operative wound care'!I$4,'Composite Data'!$A$2:$A$10,0),FALSE) -> 0 | J21: 0 | K21: =HLOOKUP($C21,'Composite Data'!$B$2:$AQ$9,MATCH('Post-operative wound care'!K$4,'Composite Data'!$A$2:$A$10,0),FALSE) -> 0 | L21: 0 | M21: =HLOOKUP($C21,'Composite Data'!$B$2:$AQ$9,MATCH('Post-operative wound care'!L$4,'Composite Data'!$A$2:$A$10,0),FALSE) -> 3 | N21: 0.3333333333 | O21: =HLOOKUP($C21,'Composite Data'!$B$2:$AQ$9,MATCH('Post-operative wound care'!P$4,'Composite Data'!$A$2:$A$10,0),FALSE) -> 2 | P21: 0.2222222222
A22: RB-2 | B22: Eastern Avenue Medical Centre | C22: F86083 | D22: =HLOOKUP($C22,'Composite Data'!$B$2:$AQ$9,MATCH('Post-operative wound care'!D$4,'Composite Data'!$A$2:$A$10,0),FALSE) -> 6577 | E22: =HLOOKUP($C22,'Composite Data'!$B$2:$AQ$9,MATCH('Post-operative wound care'!E$4,'Composite Data'!$A$2:$A$10,0),FALSE) -> 54 | F22: 0.008210430287 | G22: =HLOOKUP($C22,'Composite Data'!$B$2:$AQ$9,MATCH('Post-operative wound care'!G$4,'Composite Data'!$A$2:$A$10,0),FALSE) -> 103 | H22: 0.01566063555 | I22: =HLOOKUP($C22,'Composite Data'!$B$2:$AQ$9,MATCH('Post-operative wound care'!I$4,'Composite Data'!$A$2:$A$10,0),FALSE) -> 0 | J22: 0 | K22: =HLOOKUP($C22,'Composite Data'!$B$2:$AQ$9,MATCH('Post-operative wound care'!K$4,'Composite Data'!$A$2:$A$10,0),FALSE) -> 0 | L22: 0 | M22: =HLOOKUP($C22,'Composite Data'!$B$2:$AQ$9,MATCH('Post-operative wound care'!L$4,'Composite Data'!$A$2:$A$10,0),FALSE) -> 7 | N22: 0.1296296296 | O22: =HLOOKUP($C22,'Composite Data'!$B$2:$AQ$9,MATCH('Post-operative wound care'!P$4,'Composite Data'!$A$2:$A$10,0),FALSE) -> 10 | P22: 0.1851851852
A23: RB-2 | B23: Fullwell Avenue Surgery | C23: F86612 | D23: =HLOOKUP($C23,'Composite Data'!$B$2:$AQ$9,MATCH('Post-operative wound care'!D$4,'Composite Data'!$A$2:$A$10,0),FALSE) -> 3342 | E23: =HLOOKUP($C23,'Composite Data'!$B$2:$AQ$9,MATCH('Post-operative wound care'!E$4,'Composite Data'!$A$2:$A$10,0),FALSE) -> 19 | F23: 0.005685218432 | G23: =HLOOKUP($C23,'Composite Data'!$B$2:$AQ$9,MATCH('Post-operative wound care'!G$4,'Composite Data'!$A$2:$A$10,0),FALSE) -> 27 | H23: 0.008078994614 | I23: =HLOOKUP($C23,'Composite Data'!$B$2:$AQ$9,MATCH('Post-operative wound care'!I$4,'Composite Data'!$A$2:$A$10,0),FALSE) -> 0 | J23: 0 | K23: =HLOOKUP($C23,'Composite Data'!$B$2:$AQ$9,MATCH('Post-operative wound care'!K$4,'Composite Data'!$A$2:$A$10,0),FALSE) -> 1 | L23: 0.05263157895 | M23: =HLOOKUP($C23,'Composite Data'!$B$2:$AQ$9,MATCH('Post-operative wound care'!L$4,'Composite Data'!$A$2:$A$10,0),FALSE) -> 3 | N23: 0.1578947368 | O23: =HLOOKUP($C23,'Composite Data'!$B$2:$AQ$9,MATCH('Post-operative wound care'!P$4,'Composite Data'!$A$2:$A$10,0),FALSE) -> 16 | P23: 0.8421052632
A24: RB-2 | B24: Heathcote Primary Care Centre | C24: F86624 | D24: =HLOOKUP($C24,'Composite Data'!$B$2:$AQ$9,MATCH('Post-operative wound care'!D$4,'Composite Data'!$A$2:$A$10,0),FALSE) -> 3109 | E24: =HLOOKUP($C24,'Composite Data'!$B$2:$AQ$9,MATCH('Post-operative wound care'!E$4,'Composite Data'!$A$2:$A$10,0),FALSE) -> 1 | F24: 0.0003216468318 | G24: =HLOOKUP($C24,'Composite Data'!$B$2:$AQ$9,MATCH('Post-operative wound care'!G$4,'Composite Data'!$A$2:$A$10,0),FALSE) -> 1 | H24: 0.0003216468318 | I24: =HLOOKUP($C24,'Composite Data'!$B$2:$AQ$9,MATCH('Post-operative wound care'!I$4,'Composite Data'!$A$2:$A$10,0),FALSE) -> 0 | J24: 0 | K24: =HLOOKUP($C24,'Composite Data'!$B$2:$AQ$9,MATCH('Post-operative wound care'!K$4,'Composite Data'!$A$2:$A$10,0),FALSE) -> 0 | L24: 0 | M24: =HLOOKUP($C24,'Composite Data'!$B$2:$AQ$9,MATCH('Post-operative wound care'!L$4,'Composite Data'!$A$2:$A$10,0),FALSE) -> 0 | N24: 0 | O24: =HLOOKUP($C24,'Composite Data'!$B$2:$AQ$9,MATCH('Post-operative wound care'!P$4,'Composite Data'!$A$2:$A$10,0),FALSE) -> 0 | P24: 0
A25: RB-2 | B25: Fencepiece Road Medical Practice | C25: F86707 | D25: =HLOOKUP($C25,'Composite Data'!$B$2:$AQ$9,MATCH('Post-operative wound care'!D$4,'Composite Data'!$A$2:$A$10,0),FALSE) -> 6754 | E25: =HLOOKUP($C25,'Composite Data'!$B$2:$AQ$9,MATCH('Post-operative wound care'!E$4,'Composite Data'!$A$2:$A$10,0),FALSE) -> 15 | F25: 0.00222090613 | G25: =HLOOKUP($C25,'Composite Data'!$B$2:$AQ$9,MATCH('Post-operative wound care'!G$4,'Composite Data'!$A$2:$A$10,0),FALSE) -> 19 | H25: 0.002813147764 | I25: =HLOOKUP($C25,'Composite Data'!$B$2:$AQ$9,MATCH('Post-operative wound care'!I$4,'Composite Data'!$A$2:$A$10,0),FALSE) -> 1 | J25: 0.06666666667 | K25: =HLOOKUP($C25,'Composite Data'!$B$2:$AQ$9,MATCH('Post-operative wound care'!K$4,'Composite Data'!$A$2:$A$10,0),FALSE) -> 1 | L25: 0.06666666667 | M25: =HLOOKUP($C25,'Composite Data'!$B$2:$AQ$9,MATCH('Post-operative wound care'!L$4,'Composite Data'!$A$2:$A$10,0),FALSE) -> 2 | N25: 0.1333333333 | O25: =HLOOKUP($C25,'Composite Data'!$B$2:$AQ$9,MATCH('Post-operative wound care'!P$4,'Composite Data'!$A$2:$A$10,0),FALSE) -> 12 | P25: 0.8
A26: RB-2 | B26: The Willows Practice | C26: F86057 | D26: =HLOOKUP($C26,'Composite Data'!$B$2:$AQ$9,MATCH('Post-operative wound care'!D$4,'Composite Data'!$A$2:$A$10,0),FALSE) -> 6534 | E26: =HLOOKUP($C26,'Composite Data'!$B$2:$AQ$9,MATCH('Post-operative wound care'!E$4,'Composite Data'!$A$2:$A$10,0),FALSE) -> 8 | F26: 0.001224364861 | G26: =HLOOKUP($C26,'Composite Data'!$B$2:$AQ$9,MATCH('Post-operative wound care'!G$4,'Composite Data'!$A$2:$A$10,0),FALSE) -> 8 | H26: 0.001224364861 | I26: =HLOOKUP($C26,'Composite Data'!$B$2:$AQ$9,MATCH('Post-operative wound care'!I$4,'Composite Data'!$A$2:$A$10,0),FALSE) -> 0 | J26: 0 | K26: =HLOOKUP($C26,'Composite Data'!$B$2:$AQ$9,MATCH('Post-operative wound care'!K$4,'Composite Data'!$A$2:$A$10,0),FALSE) -> 0 | L26: 0 | M26: =HLOOKUP($C26,'Composite Data'!$B$2:$AQ$9,MATCH('Post-operative wound care'!L$4,'Composite Data'!$A$2:$A$10,0),FALSE) -> 0 | N26: 0 | O26: =HLOOKUP($C26,'Composite Data'!$B$2:$AQ$9,MATCH('Post-operative wound care'!P$4,'Composite Data'!$A$2:$A$10,0),FALSE) -> 0 | P26: 0
A27: RB-2 | B27: Forest Edge Practice | C27: F86007 | D27: =HLOOKUP($C27,'Composite Data'!$B$2:$AQ$9,MATCH('Post-operative wound care'!D$4,'Composite Data'!$A$2:$A$10,0),FALSE) -> 13285 | E27: =HLOOKUP($C27,'Composite Data'!$B$2:$AQ$9,MATCH('Post-operative wound care'!E$4,'Composite Data'!$A$2:$A$10,0),FALSE) -> 162 | F27: 0.01219420399 | G27: =HLOOKUP($C27,'Composite Data'!$B$2:$AQ$9,MATCH('Post-operative wound care'!G$4,'Composite Data'!$A$2:$A$10,0),FALSE) -> 718 | H27: 0.05404591645 | I27: =HLOOKUP($C27,'Composite Data'!$B$2:$AQ$9,MATCH('Post-operative wound care'!I$4,'Composite Data'!$A$2:$A$10,0),FALSE) -> 1 | J27: 0.006172839506 | K27: =HLOOKUP($C27,'Composite Data'!$B$2:$AQ$9,MATCH('Post-operative wound care'!K$4,'Composite Data'!$A$2:$A$10,0),FALSE) -> 4 | L27: 0.02469135802 | M27: =HLOOKUP($C27,'Composite Data'!$B$2:$AQ$9,MATCH('Post-operative wound care'!L$4,'Composite Data'!$A$2:$A$10,0),FALSE) -> 8 | N27: 0.04938271605 | O27: =HLOOKUP($C27,'Composite Data'!$B$2:$AQ$9,MATCH('Post-operative wound care'!P$4,'Composite Data'!$A$2:$A$10,0),FALSE) -> 123 | P27: 0.7592592593
A28: RB-3 | B28: The Palms Medical Centre | C28: F86009 | D28: =HLOOKUP($C28,'Composite Data'!$B$2:$AQ$9,MATCH('Post-operative wound care'!D$4,'Composite Data'!$A$2:$A$10,0),FALSE) -> 7358 | E28: =HLOOKUP($C28,'Composite Data'!$B$2:$AQ$9,MATCH('Post-operative wound care'!E$4,'Composite Data'!$A$2:$A$10,0),FALSE) -> 18 | F28: 0.002446316934 | G28: =HLOOKUP($C28,'Composite Data'!$B$2:$AQ$9,MATCH('Post-operative wound care'!G$4,'Composite Data'!$A$2:$A$10,0),FALSE) -> 26 | H28: 0.003533568905 | I28: =HLOOKUP($C28,'Composite Data'!$B$2:$AQ$9,MATCH('Post-operative wound care'!I$4,'Composite Data'!$A$2:$A$10,0),FALSE) -> 0 | J28: 0 | K28: =HLOOKUP($C28,'Composite Data'!$B$2:$AQ$9,MATCH('Post-operative wound care'!K$4,'Composite Data'!$A$2:$A$10,0),FALSE) -> 1 | L28: 0.05555555556 | M28: =HLOOKUP($C28,'Composite Data'!$B$2:$AQ$9,MATCH('Post-operative wound care'!L$4,'Composite Data'!$A$2:$A$10,0),FALSE) -> 2 | N28: 0.1111111111 | O28: =HLOOKUP($C28,'Composite Data'!$B$2:$AQ$9,MATCH('Post-operative wound care'!P$4,'Composite Data'!$A$2:$A$10,0),FALSE) -> 0 | P28: 0
A29: RB-3 | B29: Goodmayes Medical Centre | C29: F86087 | D29: =HLOOKUP($C29,'Composite Data'!$B$2:$AQ$9,MATCH('Post-operative wound care'!D$4,'Composite Data'!$A$2:$A$10,0),FALSE) -> 7748 | E29: =HLOOKUP($C29,'Composite Data'!$B$2:$AQ$9,MATCH('Post-operative wound care'!E$4,'Composite Data'!$A$2:$A$10,0),FALSE) -> 13 | F29: 0.001677852349 | G29: =HLOOKUP($C29,'Composite Data'!$B$2:$AQ$9,MATCH('Post-operative wound care'!G$4,'Composite Data'!$A$2:$A$10,0),FALSE) -> 34 | H29: 0.00438822922 | I29: =HLOOKUP($C29,'Composite Data'!$B$2:$AQ$9,MATCH('Post-operative wound care'!I$4,'Composite Data'!$A$2:$A$10,0),FALSE) -> 0 | J29: 0 | K29: =HLOOKUP($C29,'Composite Data'!$B$2:$AQ$9,MATCH('Post-operative wound care'!K$4,'Composite Data'!$A$2:$A$10,0),FALSE) -> 2 | L29: 0.1538461538 | M29: =HLOOKUP($C29,'Composite Data'!$B$2:$AQ$9,MATCH('Post-operative wound care'!L$4,'Composite Data'!$A$2:$A$10,0),FALSE) -> 5 | N29: 0.3846153846 | O29: =HLOOKUP($C29,'Composite Data'!$B$2:$AQ$9,MATCH('Post-operative wound care'!P$4,'Composite Data'!$A$2:$A$10,0),FALSE) -> 5 | P29: 0.3846153846
A30: RB-3 | B30: Seven Kings Practice | C30: F86637 | D30: =HLOOKUP($C30,'Composite Data'!$B$2:$AQ$9,MATCH('Post-operative wound care'!D$4,'Composite Data'!$A$2:$A$10,0),FALSE) -> 5046 | E30: =HLOOKUP($C30,'Composite Data'!$B$2:$AQ$9,MATCH('Post-operative wound care'!E$4,'Composite Data'!$A$2:$A$10,0),FALSE) -> 5 | F30: 0.0009908838684 | G30: =HLOOKUP($C30,'Composite Data'!$B$2:$AQ$9,MATCH('Post-operative wound care'!G$4,'Composite Data'!$A$2:$A$10,0),FALSE) -> 6 | H30: 0.001189060642 | I30: =HLOOKUP($C30,'Composite Data'!$B$2:$AQ$9,MATCH('Post-operative wound care'!I$4,'Composite Data'!$A$2:$A$10,0),FALSE) -> 0 | J30: 0 | K30: =HLOOKUP($C30,'Composite Data'!$B$2:$AQ$9,MATCH('Post-operative wound care'!K$4,'Composite Data'!$A$2:$A$10,0),FALSE) -> 0 | L30: 0 | M30: =HLOOKUP($C30,'Composite Data'!$B$2:$AQ$9,MATCH('Post-operative wound care'!L$4,'Composite Data'!$A$2:$A$10,0),FALSE) -> 0 | N30: 0 | O30: =HLOOKUP($C30,'Composite Data'!$B$2:$AQ$9,MATCH('Post-operative wound care'!P$4,'Composite Data'!$A$2:$A$10,0),FALSE) -> 0 | P30: 0
A31: RB-3 | B31: Doctor's House | C31: Y00090 | D31: =HLOOKUP($C31,'Composite Data'!$B$2:$AQ$9,MATCH('Post-operative wound care'!D$4,'Composite Data'!$A$2:$A$10,0),FALSE) -> 8097 | E31: =HLOOKUP($C31,'Composite Data'!$B$2:$AQ$9,MATCH('Post-operative wound care'!E$4,'Composite Data'!$A$2:$A$10,0),FALSE) -> 7 | F31: 0.0008645177226 | G31: =HLOOKUP($C31,'Composite Data'!$B$2:$AQ$9,MATCH('Post-operative wound care'!G$4,'Composite Data'!$A$2:$A$10,0),FALSE) -> 8 | H31: 0.0009880202544 | I31: =HLOOKUP($C31,'Composite Data'!$B$2:$AQ$9,MATCH('Post-operative wound care'!I$4,'Composite Data'!$A$2:$A$10,0),FALSE) -> 0 | J31: 0 | K31: =HLOOKUP($C31,'Composite Data'!$B$2:$AQ$9,MATCH('Post-operative wound care'!K$4,'Composite Data'!$A$2:$A$10,0),FALSE) -> 0 | L31: 0 | M31: =HLOOKUP($C31,'Composite Data'!$B$2:$AQ$9,MATCH('Post-operative wound care'!L$4,'Composite Data'!$A$2:$A$10,0),FALSE) -> 1 | N31: 0.1428571429 | O31: =HLOOKUP($C31,'Composite Data'!$B$2:$AQ$9,MATCH('Post-operative wound care'!P$4,'Composite Data'!$A$2:$A$10,0),FALSE) -> 3 | P31: 0.4285714286
A32: RB-3 | B32: Green Lane, Goodmayes Medical practice | C32: F86034 | D32: =HLOOKUP($C32,'Composite Data'!$B$2:$AQ$9,MATCH('Post-operative wound care'!D$4,'Composite Data'!$A$2:$A$10,0),FALSE) -> 5784 | E32: =HLOOKUP($C32,'Composite Data'!$B$2:$AQ$9,MATCH('Post-operative wound care'!E$4,'Composite Data'!$A$2:$A$10,0),FALSE) -> 10 | F32: 0.001728907331 | G32: =HLOOKUP($C32,'Composite Data'!$B$2:$AQ$9,MATCH('Post-operative wound care'!G$4,'Composite Data'!$A$2:$A$10,0),FALSE) -> 87 | H32: 0.01504149378 | I32: =HLOOKUP($C32,'Composite Data'!$B$2:$AQ$9,MATCH('Post-operative wound care'!I$4,'Composite Data'!$A$2:$A$10,0),FALSE) -> 0 | J32: 0 | K32: =HLOOKUP($C32,'Composite Data'!$B$2:$AQ$9,MATCH('Post-operative wound care'!K$4,'Composite Data'!$A$2:$A$10,0),FALSE) -> 0 | L32: 0 | M32: =HLOOKUP($C32,'Composite Data'!$B$2:$AQ$9,MATCH('Post-operative wound care'!L$4,'Composite Data'!$A$2:$A$10,0),FALSE) -> 1 | N32: 0.1 | O32: =HLOOKUP($C32,'Composite Data'!$B$2:$AQ$9,MATCH('Post-operative wound care'!P$4,'Composite Data'!$A$2:$A$10,0),FALSE) -> 2 | P32: 0.2
A33: RB-3 | B33: Castleton Road Surgery | C33: F86642 | D33: =HLOOKUP($C33,'Composite Data'!$B$2:$AQ$9,MATCH('Post-operative wound care'!D$4,'Composite Data'!$A$2:$A$10,0),FALSE) -> 4813 | E33: =HLOOKUP($C33,'Composite Data'!$B$2:$AQ$9,MATCH('Post-operative wound care'!E$4,'Composite Data'!$A$2:$A$10,0),FALSE) -> 8 | F33: 0.00166216497 | G33: =HLOOKUP($C33,'Composite Data'!$B$2:$AQ$9,MATCH('Post-operative wound care'!G$4,'Composite Data'!$A$2:$A$10,0),FALSE) -> 13 | H33: 0.002701018076 | I33: =HLOOKUP($C33,'Composite Data'!$B$2:$AQ$9,MATCH('Post-operative wound care'!I$4,'Composite Data'!$A$2:$A$10,0),FALSE) -> 0 | J33: 0 | K33: =HLOOKUP($C33,'Composite Data'!$B$2:$AQ$9,MATCH('Post-operative wound care'!K$4,'Composite Data'!$A$2:$A$10,0),FALSE) -> 0 | L33: 0 | M33: =HLOOKUP($C33,'Composite Data'!$B$2:$AQ$9,MATCH('Post-operative wound care'!L$4,'Composite Data'!$A$2:$A$10,0),FALSE) -> 0 | N33: 0 | O33: =HLOOKUP($C33,'Composite Data'!$B$2:$AQ$9,MATCH('Post-operative wound care'!P$4,'Composite Data'!$A$2:$A$10,0),FALSE) -> 0 | P33: 0
A34: RB-3 | B34: Chadwell Heath Surgery | C34: F86028 | D34: =HLOOKUP($C34,'Composite Data'!$B$2:$AQ$9,MATCH('Post-operative wound care'!D$4,'Composite Data'!$A$2:$A$10,0),FALSE) -> 10587 | E34: =HLOOKUP($C34,'Composite Data'!$B$2:$AQ$9,MATCH('Post-operative wound care'!E$4,'Composite Data'!$A$2:$A$10,0),FALSE) -> 29 | F34: 0.002739208463 | G34: =HLOOKUP($C34,'Composite Data'!$B$2:$AQ$9,MATCH('Post-operative wound care'!G$4,'Composite Data'!$A$2:$A$10,0),FALSE) -> 73 | H34: 0.00689524889 | I34: =HLOOKUP($C34,'Composite Data'!$B$2:$AQ$9,MATCH('Post-operative wound care'!I$4,'Composite Data'!$A$2:$A$10,0),FALSE) -> 3 | J34: 0.1034482759 | K34: =HLOOKUP($C34,'Composite Data'!$B$2:$AQ$9,MATCH('Post-operative wound care'!K$4,'Composite Data'!$A$2:$A$10,0),FALSE) -> 2 | L34: 0.06896551724 | M34: =HLOOKUP($C34,'Composite Data'!$B$2:$AQ$9,MATCH('Post-operative wound care'!L$4,'Composite Data'!$A$2:$A$10,0),FALSE) -> 2 | N34: 0.06896551724 | O34: =HLOOKUP($C34,'Composite Data'!$B$2:$AQ$9,MATCH('Post-operative wound care'!P$4,'Composite Data'!$A$2:$A$10,0),FALSE) -> 16 | P34: 0.5517241379
A35: RB-3 | B35: Grove Surgery | C35: Y00155 | D35: =HLOOKUP($C35,'Composite Data'!$B$2:$AQ$9,MATCH('Post-operative wound care'!D$4,'Composite Data'!$A$2:$A$10,0),FALSE) -> 9675 | E35: =HLOOKUP($C35,'Composite Data'!$B$2:$AQ$9,MATCH('Post-operative wound care'!E$4,'Composite Data'!$A$2:$A$10,0),FALSE) -> 1 | F35: 0.0001033591731 | G35: 0 | H35: 0 | I35: 0 | J35: 0 | K35: =HLOOKUP($C35,'Composite Data'!$B$2:$AQ$9,MATCH('Post-operative wound care'!K$4,'Composite Data'!$A$2:$A$10,0),FALSE) -> 0 | L35: 0 | M35: =HLOOKUP($C35,'Composite Data'!$B$2:$AQ$9,MATCH('Post-operative wound care'!L$4,'Composite Data'!$A$2:$A$10,0),FALSE) -> 0 | N35: 0 | O35: =HLOOKUP($C35,'Composite Data'!$B$2:$AQ$9,MATCH('Post-operative wound care'!P$4,'Composite Data'!$A$2:$A$10,0),FALSE) -> 0 | P35: 0
A36: RB-4 | B36: Broadway Surgery | C36: F86013 | D36: =HLOOKUP($C36,'Composite Data'!$B$2:$AQ$9,MATCH('Post-operative wound care'!D$4,'Composite Data'!$A$2:$A$10,0),FALSE) -> 7165 | E36: =HLOOKUP($C36,'Composite Data'!$B$2:$AQ$9,MATCH('Post-operative wound care'!E$4,'Composite Data'!$A$2:$A$10,0),FALSE) -> 12 | F36: 0.001674808095 | G36: 0 | H36: 0 | I36: 0 | J36: 0 | K36: =HLOOKUP($C36,'Composite Data'!$B$2:$AQ$9,MATCH('Post-operative wound care'!K$4,'Composite Data'!$A$2:$A$10,0),FALSE) -> 1 | L36: 0.08333333333 | M36: =HLOOKUP($C36,'Composite Data'!$B$2:$AQ$9,MATCH('Post-operative wound care'!L$4,'Composite Data'!$A$2:$A$10,0),FALSE) -> 0 | N36: 0 | O36: =HLOOKUP($C36,'Composite Data'!$B$2:$AQ$9,MATCH('Post-operative wound care'!P$4,'Composite Data'!$A$2:$A$10,0),FALSE) -> 0 | P36: 0
A37: RB-4 | B37: The Evergreen Practice | C37: F86023 | D37: =HLOOKUP($C37,'Composite Data'!$B$2:$AQ$9,MATCH('Post-operative wound care'!D$4,'Composite Data'!$A$2:$A$10,0),FALSE) -> 9496 | E37: =HLOOKUP($C37,'Composite Data'!$B$2:$AQ$9,MATCH('Post-operative wound care'!E$4,'Composite Data'!$A$2:$A$10,0),FALSE) -> 79 | F37: 0.008319292334 | G37: =HLOOKUP($C37,'Composite Data'!$B$2:$AQ$9,MATCH('Post-operative wound care'!G$4,'Composite Data'!$A$2:$A$10,0),FALSE) -> 206 | H37: 0.02169334457 | I37: =HLOOKUP($C37,'Composite Data'!$B$2:$AQ$9,MATCH('Post-operative wound care'!I$4,'Composite Data'!$A$2:$A$10,0),FALSE) -> 0 | J37: 0 | K37: =HLOOKUP($C37,'Composite Data'!$B$2:$AQ$9,MATCH('Post-operative wound care'!K$4,'Composite Data'!$A$2:$A$10,0),FALSE) -> 3 | L37: 0.03797468354 | M37: =HLOOKUP($C37,'Composite Data'!$B$2:$AQ$9,MATCH('Post-operative wound care'!L$4,'Composite Data'!$A$2:$A$10,0),FALSE) -> 5 | N37: 0.06329113924 | O37: =HLOOKUP($C37,'Composite Data'!$B$2:$AQ$9,MATCH('Post-operative wound care'!P$4,'Composite Data'!$A$2:$A$10,0),FALSE) -> 61 | P37: 0.7721518987
A38: RB-4 | B38: Wanstead Place Surgery | C38: F86032 | D38: =HLOOKUP($C38,'Composite Data'!$B$2:$AQ$9,MATCH('Post-operative wound care'!D$4,'Composite Data'!$A$2:$A$10,0),FALSE) -> 9485 | E38: =HLOOKUP($C38,'Composite Data'!$B$2:$AQ$9,MATCH('Post-operative wound care'!E$4,'Composite Data'!$A$2:$A$10,0),FALSE) -> 36 | F38: 0.003795466526 | G38: =HLOOKUP($C38,'Composite Data'!$B$2:$AQ$9,MATCH('Post-operative wound care'!G$4,'Composite Data'!$A$2:$A$10,0),FALSE) -> 56 | H38: 0.005904059041 | I38: =HLOOKUP($C38,'Composite Data'!$B$2:$AQ$9,MATCH('Post-operative wound care'!I$4,'Composite Data'!$A$2:$A$10,0),FALSE) -> 0 | J38: 0 | K38: =HLOOKUP($C38,'Composite Data'!$B$2:$AQ$9,MATCH('Post-operative wound care'!K$4,'Composite Data'!$A$2:$A$10,0),FALSE) -> 2 | L38: 0.05555555556 | M38: =HLOOKUP($C38,'Composite Data'!$B$2:$AQ$9,MATCH('Post-operative wound care'!L$4,'Composite Data'!$A$2:$A$10,0),FALSE) -> 4 | N38: 0.1111111111 | O38: =HLOOKUP($C38,'Composite Data'!$B$2:$AQ$9,MATCH('Post-operative wound care'!P$4,'Composite Data'!$A$2:$A$10,0),FALSE) -> 5 | P38: 0.1388888889
A39: RB-4 | B39: Aldersbrook Medical Centre | C39: F86731 | D39: =HLOOKUP($C39,'Composite Data'!$B$2:$AQ$9,MATCH('Post-operative wound care'!D$4,'Composite Data'!$A$2:$A$10,0),FALSE) -> 4374 | E39: =HLOOKUP($C39,'Composite Data'!$B$2:$AQ$9,MATCH('Post-operative wound care'!E$4,'Composite Data'!$A$2:$A$10,0),FALSE) -> 25 | F39: 0.005715592135 | G39: =HLOOKUP($C39,'Composite Data'!$B$2:$AQ$9,MATCH('Post-operative wound care'!G$4,'Composite Data'!$A$2:$A$10,0),FALSE) -> 46 | H39: 0.01051668953 | I39: =HLOOKUP($C39,'Composite Data'!$B$2:$AQ$9,MATCH('Post-operative wound care'!I$4,'Composite Data'!$A$2:$A$10,0),FALSE) -> 0 | J39: 0 | K39: =HLOOKUP($C39,'Composite Data'!$B$2:$AQ$9,MATCH('Post-operative wound care'!K$4,'Composite Data'!$A$2:$A$10,0),FALSE) -> 0 | L39: 0 | M39: =HLOOKUP($C39,'Composite Data'!$B$2:$AQ$9,MATCH('Post-operative wound care'!L$4,'Composite Data'!$A$2:$A$10,0),FALSE) -> 1 | N39: 0.04 | O39: =HLOOKUP($C39,'Composite Data'!$B$2:$AQ$9,MATCH('Post-operative wound care'!P$4,'Composite Data'!$A$2:$A$10,0),FALSE) -> 2 | P39: 0.08
A40: RB-4 | B40: Southdene Surgery | C40: F86066 | D40: =HLOOKUP($C40,'Composite Data'!$B$2:$AQ$9,MATCH('Post-operative wound care'!D$4,'Composite Data'!$A$2:$A$10,0),FALSE) -> 8071 | E40: =HLOOKUP($C40,'Composite Data'!$B$2:$AQ$9,MATCH('Post-operative wound care'!E$4,'Composite Data'!$A$2:$A$10,0),FALSE) -> 105 | F40: 0.01300954033 | G40: =HLOOKUP($C40,'Composite Data'!$B$2:$AQ$9,MATCH('Post-operative wound care'!G$4,'Composite Data'!$A$2:$A$10,0),FALSE) -> 240 | H40: 0.02973609218 | I40: =HLOOKUP($C40,'Composite Data'!$B$2:$AQ$9,MATCH('Post-operative wound care'!I$4,'Composite Data'!$A$2:$A$10,0),FALSE) -> 0 | J40: 0 | K40: =HLOOKUP($C40,'Composite Data'!$B$2:$AQ$9,MATCH('Post-operative wound care'!K$4,'Composite Data'!$A$2:$A$10,0),FALSE) -> 4 | L40: 0.0380952381 | M40: =HLOOKUP($C40,'Composite Data'!$B$2:$AQ$9,MATCH('Post-operative wound care'!L$4,'Composite Data'!$A$2:$A$10,0),FALSE) -> 10 | N40: 0.09523809524 | O40: =HLOOKUP($C40,'Composite Data'!$B$2:$AQ$9,MATCH('Post-operative wound care'!P$4,'Composite Data'!$A$2:$A$10,0),FALSE) -> 44 | P40: 0.419047619
A41: RB-4 | B41: Shrubberies Medical Centre | C41: F86641 | D41: =HLOOKUP($C41,'Composite Data'!$B$2:$AQ$9,MATCH('Post-operative wound care'!D$4,'Composite Data'!$A$2:$A$10,0),FALSE) -> 7903 | E41: =HLOOKUP($C41,'Composite Data'!$B$2:$AQ$9,MATCH('Post-operative wound care'!E$4,'Composite Data'!$A$2:$A$10,0),FALSE) -> 15 | F41: 0.001898013413 | G41: =HLOOKUP($C41,'Composite Data'!$B$2:$AQ$9,MATCH('Post-operative wound care'!G$4,'Composite Data'!$A$2:$A$10,0),FALSE) -> 25 | H41: 0.003163355688 | I41: =HLOOKUP($C41,'Composite Data'!$B$2:$AQ$9,MATCH('Post-operative wound care'!I$4,'Composite Data'!$A$2:$A$10,0),FALSE) -> 0 | J41: 0 | K41: =HLOOKUP($C41,'Composite Data'!$B$2:$AQ$9,MATCH('Post-operative wound care'!K$4,'Composite Data'!$A$2:$A$10,0),FALSE) -> 0 | L41: 0 | M41: =HLOOKUP($C41,'Composite Data'!$B$2:$AQ$9,MATCH('Post-operative wound care'!L$4,'Composite Data'!$A$2:$A$10,0),FALSE) -> 2 | N41: 0.1333333333 | O41: =HLOOKUP($C41,'Composite Data'!$B$2:$AQ$9,MATCH('Post-operative wound care'!P$4,'Composite Data'!$A$2:$A$10,0),FALSE) -> 4 | P41: 0.2666666667
A42: RB-4 | B42: Glebelands Practice | C42: F86020 | D42: =HLOOKUP($C42,'Composite Data'!$B$2:$AQ$9,MATCH('Post-operative wound care'!D$4,'Composite Data'!$A$2:$A$10,0),FALSE) -> 5781 | E42: =HLOOKUP($C42,'Composite Data'!$B$2:$AQ$9,MATCH('Post-operative wound care'!E$4,'Composite Data'!$A$2:$A$10,0),FALSE) -> 46 | F42: 0.007957100848 | G42: =HLOOKUP($C42,'Composite Data'!$B$2:$AQ$9,MATCH('Post-operative wound care'!G$4,'Composite Data'!$A$2:$A$10,0),FALSE) -> 46 | H42: 0.007957100848 | I42: =HLOOKUP($C42,'Composite Data'!$B$2:$AQ$9,MATCH('Post-operative wound care'!I$4,'Composite Data'!$A$2:$A$10,0),FALSE) -> 1 | J42: 0.02173913043 | K42: =HLOOKUP($C42,'Composite Data'!$B$2:$AQ$9,MATCH('Post-operative wound care'!K$4,'Composite Data'!$A$2:$A$10,0),FALSE) -> 2 | L42: 0.04347826087 | M42: =HLOOKUP($C42,'Composite Data'!$B$2:$AQ$9,MATCH('Post-operative wound care'!L$4,'Composite Data'!$A$2:$A$10,0),FALSE) -> 5 | N42: 0.1086956522 | O42: =HLOOKUP($C42,'Composite Data'!$B$2:$AQ$9,MATCH('Post-operative wound care'!P$4,'Composite Data'!$A$2:$A$10,0),FALSE) -> 44 | P42: 0.9565217391
A43: RB-4 | B43: Elmhurst Practice | C43: F86064 | D43: =HLOOKUP($C43,'Composite Data'!$B$2:$AQ$9,MATCH('Post-operative wound care'!D$4,'Composite Data'!$A$2:$A$10,0),FALSE) -> 4859 | E43: =HLOOKUP($C43,'Composite Data'!$B$2:$AQ$9,MATCH('Post-operative wound care'!E$4,'Composite Data'!$A$2:$A$10,0),FALSE) -> 6 | F43: 0.00123482198 | G43: =HLOOKUP($C43,'Composite Data'!$B$2:$AQ$9,MATCH('Post-operative wound care'!G$4,'Composite Data'!$A$2:$A$10,0),FALSE) -> 6 | H43: 0.00123482198 | I43: =HLOOKUP($C43,'Composite Data'!$B$2:$AQ$9,MATCH('Post-operative wound care'!I$4,'Composite Data'!$A$2:$A$10,0),FALSE) -> 0 | J43: 0 | K43: =HLOOKUP($C43,'Composite Data'!$B$2:$AQ$9,MATCH('Post-operative wound care'!K$4,'Composite Data'!$A$2:$A$10,0),FALSE) -> 0 | L43: 0 | M43: =HLOOKUP($C43,'Composite Data'!$B$2:$AQ$9,MATCH('Post-operative wound care'!L$4,'Composite Data'!$A$2:$A$10,0),FALSE) -> 0 | N43: 0 | O43: =HLOOKUP($C43,'Composite Data'!$B$2:$AQ$9,MATCH('Post-operative wound care'!P$4,'Composite Data'!$A$2:$A$10,0),FALSE) -> 1 | P43: 0.1666666667
A44: RB-4 | B44: Clayhall Clinic | C44: F86691 | D44: =HLOOKUP($C44,'Composite Data'!$B$2:$AQ$9,MATCH('Post-operative wound care'!D$4,'Composite Data'!$A$2:$A$10,0),FALSE) -> 10810 | E44: =HLOOKUP($C44,'Composite Data'!$B$2:$AQ$9,MATCH('Post-operative wound care'!E$4,'Composite Data'!$A$2:$A$10,0),FALSE) -> 68 | F44: 0.006290471785 | G44: =HLOOKUP($C44,'Composite Data'!$B$2:$AQ$9,MATCH('Post-operative wound care'!G$4,'Composite Data'!$A$2:$A$10,0),FALSE) -> 232 | H44: 0.02146160962 | I44: =HLOOKUP($C44,'Composite Data'!$B$2:$AQ$9,MATCH('Post-operative wound care'!I$4,'Composite Data'!$A$2:$A$10,0),FALSE) -> 1 | J44: 0.01470588235 | K44: =HLOOKUP($C44,'Composite Data'!$B$2:$AQ$9,MATCH('Post-operative wound care'!K$4,'Composite Data'!$A$2:$A$10,0),FALSE) -> 4 | L44: 0.05882352941 | M44: =HLOOKUP($C44,'Composite Data'!$B$2:$AQ$9,MATCH('Post-operative wound care'!L$4,'Composite Data'!$A$2:$A$10,0),FALSE) -> 8 | N44: 0.1176470588 | O44: =HLOOKUP($C44,'Composite Data'!$B$2:$AQ$9,MATCH('Post-operative wound care'!P$4,'Composite Data'!$A$2:$A$10,0),FALSE) -> 0 | P44: 0
A45: RB-4 | B45: Rydal Practice | C45: F86012 | D45: =HLOOKUP($C45,'Composite Data'!$B$2:$AQ$9,MATCH('Post-operative wound care'!D$4,'Composite Data'!$A$2:$A$10,0),FALSE) -> 9680 | E45: =HLOOKUP($C45,'Composite Data'!$B$2:$AQ$9,MATCH('Post-operative wound care'!E$4,'Composite Data'!$A$2:$A$10,0),FALSE) -> 55 | F45: 0.005681818182 | G45: =HLOOKUP($C45,'Composite Data'!$B$2:$AQ$9,MATCH('Post-operative wound care'!G$4,'Composite Data'!$A$2:$A$10,0),FALSE) -> 65 | H45: 0.006714876033 | I45: =HLOOKUP($C45,'Composite Data'!$B$2:$AQ$9,MATCH('Post-operative wound care'!I$4,'Composite Data'!$A$2:$A$10,0),FALSE) -> 0 | J45: 0 | K45: =HLOOKUP($C45,'Composite Data'!$B$2:$AQ$9,MATCH('Post-operative wound care'!K$4,'Composite Data'!$A$2:$A$10,0),FALSE) -> 3 | L45: 0.05454545455 | M45: =HLOOKUP($C45,'Composite Data'!$B$2:$AQ$9,MATCH('Post-operative wound care'!L$4,'Composite Data'!$A$2:$A$10,0),FALSE) -> 7 | N45: 0.1272727273 | O45: =HLOOKUP($C45,'Composite Data'!$B$2:$AQ$9,MATCH('Post-operative wound care'!P$4,'Composite Data'!$A$2:$A$10,0),FALSE) -> 0 | P45: 0
A46: RB-4 | B46: Queen Mary Practice | C46: F86658 | D46: =HLOOKUP($C46,'Composite Data'!$B$2:$AQ$9,MATCH('Post-operative wound care'!D$4,'Composite Data'!$A$2:$A$10,0),FALSE) -> 5240 | E46: =HLOOKUP($C46,'Composite Data'!$B$2:$AQ$9,MATCH('Post-operative wound care'!E$4,'Composite Data'!$A$2:$A$10,0),FALSE) -> 17 | F46: 0.003244274809 | G46: =HLOOKUP($C46,'Composite Data'!$B$2:$AQ$9,MATCH('Post-operative wound care'!G$4,'Composite Data'!$A$2:$A$10,0),FALSE) -> 27 | H46: 0.005152671756 | I46: =HLOOKUP($C46,'Composite Data'!$B$2:$AQ$9,MATCH('Post-operative wound care'!I$4,'Composite Data'!$A$2:$A$10,0),FALSE) -> 0 | J46: 0 | K46: =HLOOKUP($C46,'Composite Data'!$B$2:$AQ$9,MATCH('Post-operative wound care'!K$4,'Composite Data'!$A$2:$A$10,0),FALSE) -> 0 | L46: 0 | M46: =HLOOKUP($C46,'Composite Data'!$B$2:$AQ$9,MATCH('Post-operative wound care'!L$4,'Composite Data'!$A$2:$A$10,0),FALSE) -> 0 | N46: 0 | O46: =HLOOKUP($C46,'Composite Data'!$B$2:$AQ$9,MATCH('Post-operative wound care'!P$4,'Composite Data'!$A$2:$A$10,0),FALSE) -> 7 | P46: 0.4117647059
A47: RB-5 | B47: Ilford Medical Centre | C47: F86022 | D47: =HLOOKUP($C47,'Composite Data'!$B$2:$AQ$9,MATCH('Post-operative wound care'!D$4,'Composite Data'!$A$2:$A$10,0),FALSE) -> 14288 | E47: =HLOOKUP($C47,'Composite Data'!$B$2:$AQ$9,MATCH('Post-operative wound care'!E$4,'Composite Data'!$A$2:$A$10,0),FALSE) -> 0 | F47: 0 | G47: =HLOOKUP($C47,'Composite Data'!$B$2:$AQ$9,MATCH('Post-operative wound care'!G$4,'Composite Data'!$A$2:$A$10,0),FALSE) -> 0 | H47: 0 | I47: =HLOOKUP($C47,'Composite Data'!$B$2:$AQ$9,MATCH('Post-operative wound care'!I$4,'Composite Data'!$A$2:$A$10,0),FALSE) -> 0 | J47: 0 | K47: =HLOOKUP($C47,'Composite Data'!$B$2:$AQ$9,MATCH('Post-operative wound care'!K$4,'Composite Data'!$A$2:$A$10,0),FALSE) -> 0 | L47: 0.0% | M47: =HLOOKUP($C47,'Composite Data'!$B$2:$AQ$9,MATCH('Post-operative wound care'!L$4,'Composite Data'!$A$2:$A$10,0),FALSE) -> 0 | N47: 0 | O47: =HLOOKUP($C47,'Composite Data'!$B$2:$AQ$9,MATCH('Post-operative wound care'!P$4,'Composite Data'!$A$2:$A$10,0),FALSE) -> 0 | P47: 0
A48: RB-5 | B48: The Practice Loxford | C48: Y02987 | D48: =HLOOKUP($C48,'Composite Data'!$B$2:$AQ$9,MATCH('Post-operative wound care'!D$4,'Composite Data'!$A$2:$A$10,0),FALSE) -> 26912 | E48: =HLOOKUP($C48,'Composite Data'!$B$2:$AQ$9,MATCH('Post-operative wound care'!E$4,'Composite Data'!$A$2:$A$10,0),FALSE) -> 73 | F48: 0.00271254459 | G48: =HLOOKUP($C48,'Composite Data'!$B$2:$AQ$9,MATCH('Post-operative wound care'!G$4,'Composite Data'!$A$2:$A$10,0),FALSE) -> 0 | H48: 0 | I48: =HLOOKUP($C48,'Composite Data'!$B$2:$AQ$9,MATCH('Post-operative wound care'!I$4,'Composite Data'!$A$2:$A$10,0),FALSE) -> 3 | J48: 0.04109589041 | K48: =HLOOKUP($C48,'Composite Data'!$B$2:$AQ$9,MATCH('Post-operative wound care'!K$4,'Composite Data'!$A$2:$A$10,0),FALSE) -> 3 | L48: 0.04109589041 | M48: =HLOOKUP($C48,'Composite Data'!$B$2:$AQ$9,MATCH('Post-operative wound care'!L$4,'Composite Data'!$A$2:$A$10,0),FALSE) -> 4 | N48: 0.05479452055 | O48: =HLOOKUP($C48,'Composite Data'!$B$2:$AQ$9,MATCH('Post-operative wound care'!P$4,'Composite Data'!$A$2:$A$10,0),FALSE) -> 41 | P48: 0.5616438356
A49: RB-5 | B49: Mathukias Surgery | C49: F86692 | D49: =HLOOKUP($C49,'Composite Data'!$B$2:$AQ$9,MATCH('Post-operative wound care'!D$4,'Composite Data'!$A$2:$A$10,0),FALSE) -> 10658 | E49: =HLOOKUP($C49,'Composite Data'!$B$2:$AQ$9,MATCH('Post-operative wound care'!E$4,'Composite Data'!$A$2:$A$10,0),FALSE) -> 9 | F49: 0.0008444361043 | G49: =HLOOKUP($C49,'Composite Data'!$B$2:$AQ$9,MATCH('Post-operative wound care'!G$4,'Composite Data'!$A$2:$A$10,0),FALSE) -> 39 | H49: 0.003659223119 | I49: =HLOOKUP($C49,'Composite Data'!$B$2:$AQ$9,MATCH('Post-operative wound care'!I$4,'Composite Data'!$A$2:$A$10,0),FALSE) -> 0 | J49: 0 | K49: =HLOOKUP($C49,'Composite Data'!$B$2:$AQ$9,MATCH('Post-operative wound care'!K$4,'Composite Data'!$A$2:$A$10,0),FALSE) -> 0 | L49: 0 | M49: =HLOOKUP($C49,'Composite Data'!$B$2:$AQ$9,MATCH('Post-operative wound care'!L$4,'Composite Data'!$A$2:$A$10,0),FALSE) -> 0 | N49: 0 | O49: =HLOOKUP($C49,'Composite Data'!$B$2:$AQ$9,MATCH('Post-operative wound care'!P$4,'Composite Data'!$A$2:$A$10,0),FALSE) -> 9 | P49: 1
A50: RB-5 | B50: Ilford Lane Surgery | C50: F86082 | D50: =HLOOKUP($C50,'Composite Data'!$B$2:$AQ$9,MATCH('Post-operative wound care'!D$4,'Composite Data'!$A$2:$A$10,0),FALSE) -> 6040 | E50: =HLOOKUP($C50,'Composite Data'!$B$2:$AQ$9,MATCH('Post-operative wound care'!E$4,'Composite Data'!$A$2:$A$10,0),FALSE) -> 13 | F50: 0.002152317881 | G50: 0 | H50: 0 | I50: 0 | J50: 0 | K50: =HLOOKUP($C50,'Composite Data'!$B$2:$AQ$9,MATCH('Post-operative wound care'!K$4,'Composite Data'!$A$2:$A$10,0),FALSE) -> 0 | L50: 0 | M50: =HLOOKUP($C50,'Composite Data'!$B$2:$AQ$9,MATCH('Post-operative wound care'!L$4,'Composite Data'!$A$2:$A$10,0),FALSE) -> 0 | N50: 0 | O50: =HLOOKUP($C50,'Composite Data'!$B$2:$AQ$9,MATCH('Post-operative wound care'!P$4,'Composite Data'!$A$2:$A$10,0),FALSE) -> 13 | P50: 1
A51: RB-5 | B51: Oak Tree Medical Practice | C51: F86025 | D51: =HLOOKUP($C51,'Composite Data'!$B$2:$AQ$9,MATCH('Post-operative wound care'!D$4,'Composite Data'!$A$2:$A$10,0),FALSE) -> 17281 | E51: =HLOOKUP($C51,'Composite Data'!$B$2:$AQ$9,MATCH('Post-operative wound care'!E$4,'Composite Data'!$A$2:$A$10,0),FALSE) -> 55 | F51: 0.003182686187 | G51: 0 | H51: 0 | I51: 0 | J51: 0 | K51: =HLOOKUP($C51,'Composite Data'!$B$2:$AQ$9,MATCH('Post-operative wound care'!K$4,'Composite Data'!$A$2:$A$10,0),FALSE) -> 2 | L51: 0.03636363636 | M51: =HLOOKUP($C51,'Composite Data'!$B$2:$AQ$9,MATCH('Post-operative wound care'!L$4,'Composite Data'!$A$2:$A$10,0),FALSE) -> 1 | N51: 0.01818181818 | O51: =HLOOKUP($C51,'Composite Data'!$B$2:$AQ$9,MATCH('Post-operative wound care'!P$4,'Composite Data'!$A$2:$A$10,0),FALSE) -> 55 | P51: 1
A52: RB-6 | B52: Hainault Surgery | C52: F86085 | D52: =HLOOKUP($C52,'Composite Data'!$B$2:$AQ$9,MATCH('Post-operative wound care'!D$4,'Composite Data'!$A$2:$A$10,0),FALSE) -> 3533 | E52: =HLOOKUP($C52,'Composite Data'!$B$2:$AQ$9,MATCH('Post-operative wound care'!E$4,'Composite Data'!$A$2:$A$10,0),FALSE) -> 15 | F52: 0.004245683555 | G52: =HLOOKUP($C52,'Composite Data'!$B$2:$AQ$9,MATCH('Post-operative wound care'!G$4,'Composite Data'!$A$2:$A$10,0),FALSE) -> 17 | H52: 0.004811774696 | I52: =HLOOKUP($C52,'Composite Data'!$B$2:$AQ$9,MATCH('Post-operative wound care'!I$4,'Composite Data'!$A$2:$A$10,0),FALSE) -> 0 | J52: 0 | K52: =HLOOKUP($C52,'Composite Data'!$B$2:$AQ$9,MATCH('Post-operative wound care'!K$4,'Composite Data'!$A$2:$A$10,0),FALSE) -> 0 | L52: 0 | M52: =HLOOKUP($C52,'Composite Data'!$B$2:$AQ$9,MATCH('Post-operative wound care'!L$4,'Composite Data'!$A$2:$A$10,0),FALSE) -> 1 | N52: 0.06666666667 | O52: =HLOOKUP($C52,'Composite Data'!$B$2:$AQ$9,MATCH('Post-operative wound care'!P$4,'Composite Data'!$A$2:$A$10,0),FALSE) -> 5 | P52: 0.3333333333
A53: RB-6 | B53: Fullwell Cross Medical Centre | C53: F86010 | D53: =HLOOKUP($C53,'Composite Data'!$B$2:$AQ$9,MATCH('Post-operative wound care'!D$4,'Composite Data'!$A$2:$A$10,0),FALSE) -> 14857 | E53: =HLOOKUP($C53,'Composite Data'!$B$2:$AQ$9,MATCH('Post-operative wound care'!E$4,'Composite Data'!$A$2:$A$10,0),FALSE) -> 86 | F53: 0.005788517197 | G53: =HLOOKUP($C53,'Composite Data'!$B$2:$AQ$9,MATCH('Post-operative wound care'!G$4,'Composite Data'!$A$2:$A$10,0),FALSE) -> 102 | H53: 0.006865450629 | I53: =HLOOKUP($C53,'Composite Data'!$B$2:$AQ$9,MATCH('Post-operative wound care'!I$4,'Composite Data'!$A$2:$A$10,0),FALSE) -> 0 | J53: 0 | K53: =HLOOKUP($C53,'Composite Data'!$B$2:$AQ$9,MATCH('Post-operative wound care'!K$4,'Composite Data'!$A$2:$A$10,0),FALSE) -> 3 | L53: 0.03488372093 | M53: =HLOOKUP($C53,'Composite Data'!$B$2:$AQ$9,MATCH('Post-operative wound care'!L$4,'Composite Data'!$A$2:$A$10,0),FALSE) -> 5 | N53: 0.05813953488 | O53: =HLOOKUP($C53,'Composite Data'!$B$2:$AQ$9,MATCH('Post-operative wound care'!P$4,'Composite Data'!$A$2:$A$10,0),FALSE) -> 3 | P53: 0.03488372093
A54: RB-6 | B54: Newbury Group Practice | C54: F86060 | D54: =HLOOKUP($C54,'Composite Data'!$B$2:$AQ$9,MATCH('Post-operative wound care'!D$4,'Composite Data'!$A$2:$A$10,0),FALSE) -> 15880 | E54: =HLOOKUP($C54,'Composite Data'!$B$2:$AQ$9,MATCH('Post-operative wound care'!E$4,'Composite Data'!$A$2:$A$10,0),FALSE) -> 0 | F54: 0 | G54: =HLOOKUP($C54,'Composite Data'!$B$2:$AQ$9,MATCH('Post-operative wound care'!G$4,'Composite Data'!$A$2:$A$10,0),FALSE) -> 0 | H54: 0 | I54: =HLOOKUP($C54,'Composite Data'!$B$2:$AQ$9,MATCH('Post-operative wound care'!I$4,'Composite Data'!$A$2:$A$10,0),FALSE) -> 0 | J54: 0 | K54: =HLOOKUP($C54,'Composite Data'!$B$2:$AQ$9,MATCH('Post-operative wound care'!K$4,'Composite Data'!$A$2:$A$10,0),FALSE) -> 0 | L54: 0.0% | M54: =HLOOKUP($C54,'Composite Data'!$B$2:$AQ$9,MATCH('Post-operative wound care'!L$4,'Composite Data'!$A$2:$A$10,0),FALSE) -> 0 | N54: 0 | O54: =HLOOKUP($C54,'Composite Data'!$B$2:$AQ$9,MATCH('Post-operative wound care'!P$4,'Composite Data'!$A$2:$A$10,0),FALSE) -> 0 | P54: 0

Sheet Composite Data
B1: =MATCH(B2,'Control Panel'!$A$12:$A$53,0) -> 39 | C1: =MATCH(C2,'Control Panel'!$A$12:$A$53,0) -> 38 | D1: =MATCH(D2,'Control Panel'!$A$12:$A$53,0) -> 8 | E1: =MATCH(E2,'Control Panel'!$A$12:$A$53,0) -> 15 | F1: =MATCH(F2,'Control Panel'!$A$12:$A$53,0) -> 14 | G1: =MATCH(G2,'Control Panel'!$A$12:$A$53,0) -> 23 | H1: =MATCH(H2,'Control Panel'!$A$12:$A$53,0) -> 24 | I1: =MATCH(I2,'Control Panel'!$A$12:$A$53,0) -> 34 | J1: =MATCH(J2,'Control Panel'!$A$12:$A$53,0) -> 36 | K1: =MATCH(K2,'Control Panel'!$A$12:$A$53,0) -> 3 | L1: =MATCH(L2,'Control Panel'!$A$12:$A$53,0) -> 19 | M1: =MATCH(M2,'Control Panel'!$A$12:$A$53,0) -> 27 | N1: =MATCH(N2,'Control Panel'!$A$12:$A$53,0) -> 13 | O1: =MATCH(O2,'Control Panel'!$A$12:$A$53,0) -> 7 | P1: =MATCH(P2,'Control Panel'!$A$12:$A$53,0) -> 2 | Q1: =MATCH(Q2,'Control Panel'!$A$12:$A$53,0) -> 5 | R1: =MATCH(R2,'Control Panel'!$A$12:$A$53,0) -> 37 | S1: =MATCH(S2,'Control Panel'!$A$12:$A$53,0) -> 32 | T1: =MATCH(T2,'Control Panel'!$A$12:$A$53,0) -> 1 | U1: =MATCH(U2,'Control Panel'!$A$12:$A$53,0) -> 21 | V1: =MATCH(V2,'Control Panel'!$A$12:$A$53,0) -> 29 | W1: =MATCH(W2,'Control Panel'!$A$12:$A$53,0) -> 18 | X1: =MATCH(X2,'Control Panel'!$A$12:$A$53,0) -> 12 | Y1: =MATCH(Y2,'Control Panel'!$A$12:$A$53,0) -> 11 | Z1: =MATCH(Z2,'Control Panel'!$A$12:$A$53,0) -> 17 | AA1: =MATCH(AA2,'Control Panel'!$A$12:$A$53,0) -> 40 | AB1: =MATCH(AB2,'Control Panel'!$A$12:$A$53,0) -> 10 | AC1: =MATCH(AC2,'Control Panel'!$A$12:$A$53,0) -> 9 | AD1: =MATCH(AD2,'Control Panel'!$A$12:$A$53,0) -> 28 | AE1: =MATCH(AE2,'Control Panel'!$A$12:$A$53,0) -> 31 | AF1: =MATCH(AF2,'Control Panel'!$A$12:$A$53,0) -> 42 | AG1: =MATCH(AG2,'Control Panel'!$A$12:$A$53,0) -> 4 | AH1: =MATCH(AH2,'Control Panel'!$A$12:$A$53,0) -> 20 | AI1: =MATCH(AI2,'Control Panel'!$A$12:$A$53,0) -> 26 | AJ1: =MATCH(AJ2,'Control Panel'!$A$12:$A$53,0) -> 22 | AK1: =MATCH(AK2,'Control Panel'!$A$12:$A$53,0) -> 25 | AL1: =MATCH(AL2,'Control Panel'!$A$12:$A$53,0) -> 35 | AM1: =MATCH(AM2,'Control Panel'!$A$12:$A$53,0) -> 30 | AN1: =MATCH(AN2,'Control Panel'!$A$12:$A$53,0) -> 33 | AO1: =MATCH(AO2,'Control Panel'!$A$12:$A$53,0) -> 41 | AP1: =MATCH(AP2,'Control Panel'!$A$12:$A$53,0) -> 16 | AQ1: =MATCH(AQ2,'Control Panel'!$A$12:$A$53,0) -> 6
B2: F86025 | C2: F86082 | D2: F86657 | E2: F86007 | F2: F86057 | G2: Y00155 | H2: F86013 | I2: F86658 | J2: Y02987 | K2: Y00918 | L2: Y00090 | M2: F86731 | N2: F86707 | O2: F86703 | P2: F86702 | Q2: F86698 | R2: F86692 | S2: F86691 | T2: F86652 | U2: F86642 | V2: F86641 | W2: F86637 | X2: F86624 | Y2: F86612 | Z2: F86087 | AA2: F86085 | AB2: F86083 | AC2: F86081 | AD2: F86066 | AE2: F86064 | AF2: F86060 | AG2: F86042 | AH2: F86034 | AI2: F86032 | AJ2: F86028 | AK2: F86023 | AL2: F86022 | AM2: F86020 | AN2: F86012 | AO2: F86010 | AP2: F86009 | AQ2: F86008
A3: Currently Registered Regular Patients | B3: =VLOOKUP($A3,'Other Data'!A2:F10,MATCH('Composite Data'!B2,'Other Data'!A2:F2,0),FALSE) -> 17281 | C3: =VLOOKUP($A3,'Other Data'!$A$4:$J$10,MATCH('Composite Data'!C$2,'Other Data'!$A$2:$J$2,0),FALSE) -> 6040 | D3: =VLOOKUP($A3,'Other Data'!$A$4:$J$10,MATCH('Composite Data'!D$2,'Other Data'!$A$2:$J$2,0),FALSE) -> 8166 | E3: =VLOOKUP($A3,'EMIS Data'!$A$10:$DG$16,MATCH('Composite Data'!E$2,'EMIS Data'!$A$8:$DG$8,0),FALSE) -> 13285 | F3: =VLOOKUP($A3,'EMIS Data'!$A$10:$DG$16,MATCH('Composite Data'!F$2,'EMIS Data'!$A$8:$DG$8,0),FALSE) -> 6534 | G3: =VLOOKUP($A3,'Other Data'!$A$4:$J$10,MATCH('Composite Data'!G$2,'Other Data'!$A$2:$J$2,0),FALSE) -> 9675 | H3: =VLOOKUP($A3,'Other Data'!$A$4:$J$10,MATCH('Composite Data'!H$2,'Other Data'!$A$2:$J$2,0),FALSE) -> 7165 | I3: =VLOOKUP($A3,'EMIS Data'!$A$10:$DG$16,MATCH('Composite Data'!I$2,'EMIS Data'!$A$8:$DG$8,0),FALSE) -> 5240 | J3: 26912 | K3: =VLOOKUP($A3,'EMIS Data'!$A$10:$DG$16,MATCH('Composite Data'!K$2,'EMIS Data'!$A$8:$DG$8,0),FALSE) -> 6583 | L3: =VLOOKUP($A3,'EMIS Data'!$A$10:$DG$16,MATCH('Composite Data'!L$2,'EMIS Data'!$A$8:$DG$8,0),FALSE) -> 8097 | M3: =VLOOKUP($A3,'EMIS Data'!$A$10:$DG$16,MATCH('Composite Data'!M$2,'EMIS Data'!$A$8:$DG$8,0),FALSE) -> 4374 | N3: =VLOOKUP($A3,'EMIS Data'!$A$10:$DG$16,MATCH('Composite Data'!N$2,'EMIS Data'!$A$8:$DG$8,0),FALSE) -> 6754 | O3: =VLOOKUP($A3,'EMIS Data'!$A$10:$DG$16,MATCH('Composite Data'!O$2,'EMIS Data'!$A$8:$DG$8,0),FALSE) -> 3827 | P3: =VLOOKUP($A3,'EMIS Data'!$A$10:$DG$16,MATCH('Composite Data'!P$2,'EMIS Data'!$A$8:$DG$8,0),FALSE) -> 5168 | Q3: =VLOOKUP($A3,'EMIS Data'!$A$10:$DG$16,MATCH('Composite Data'!Q$2,'EMIS Data'!$A$8:$DG$8,0),FALSE) -> 5183 | R3: =VLOOKUP($A3,'EMIS Data'!$A$10:$DG$16,MATCH('Composite Data'!R$2,'EMIS Data'!$A$8:$DG$8,0),FALSE) -> 10658 | S3: =VLOOKUP($A3,'EMIS Data'!$A$10:$DG$16,MATCH('Composite Data'!S$2,'EMIS Data'!$A$8:$DG$8,0),FALSE) -> 10810 | T3: =VLOOKUP($A3,'EMIS Data'!$A$10:$DG$16,MATCH('Composite Data'!T$2,'EMIS Data'!$A$8:$DG$8,0),FALSE) -> 6917 | U3: =VLOOKUP($A3,'EMIS Data'!$A$10:$DG$16,MATCH('Composite Data'!U$2,'EMIS Data'!$A$8:$DG$8,0),FALSE) -> 4813 | V3: =VLOOKUP($A3,'EMIS Data'!$A$10:$DG$16,MATCH('Composite Data'!V$2,'EMIS Data'!$A$8:$DG$8,0),FALSE) -> 7903 | W3: =VLOOKUP($A3,'EMIS Data'!$A$10:$DG$16,MATCH('Composite Data'!W$2,'EMIS Data'!$A$8:$DG$8,0),FALSE) -> 5046 | X3: =VLOOKUP($A3,'EMIS Data'!$A$10:$DG$16,MATCH('Composite Data'!X$2,'EMIS Data'!$A$8:$DG$8,0),FALSE) -> 3109 | Y3: =VLOOKUP($A3,'EMIS Data'!$A$10:$DG$16,MATCH('Composite Data'!Y$2,'EMIS Data'!$A$8:$DG$8,0),FALSE) -> 3342 | Z3: =VLOOKUP($A3,'EMIS Data'!$A$10:$DG$16,MATCH('Composite Data'!Z$2,'EMIS Data'!$A$8:$DG$8,0),FALSE) -> 7748 | AA3: =VLOOKUP($A3,'EMIS Data'!$A$10:$DG$16,MATCH('Composite Data'!AA$2,'EMIS Data'!$A$8:$DG$8,0),FALSE) -> 3533 | AB3: =VLOOKUP($A3,'EMIS Data'!$A$10:$DG$16,MATCH('Composite Data'!AB$2,'EMIS Data'!$A$8:$DG$8,0),FALSE) -> 6577 | AC3: =VLOOKUP($A3,'EMIS Data'!$A$10:$DG$16,MATCH('Composite Data'!AC$2,'EMIS Data'!$A$8:$DG$8,0),FALSE) -> 6340 | AD3: =VLOOKUP($A3,'EMIS Data'!$A$10:$DG$16,MATCH('Composite Data'!AD$2,'EMIS Data'!$A$8:$DG$8,0),FALSE) -> 8071 | AE3: =VLOOKUP($A3,'EMIS Data'!$A$10:$DG$16,MATCH('Composite Data'!AE$2,'EMIS Data'!$A$8:$DG$8,0),FALSE) -> 4859 | AF3: =VLOOKUP($A3,'EMIS Data'!$A$10:$DG$16,MATCH('Composite Data'!AF$2,'EMIS Data'!$A$8:$DG$8,0),FALSE) -> 15880 | AG3: =VLOOKUP($A3,'EMIS Data'!$A$10:$DG$16,MATCH('Composite Data'!AG$2,'EMIS Data'!$A$8:$DG$8,0),FALSE) -> 6308 | AH3: =VLOOKUP($A3,'EMIS Data'!$A$10:$DG$16,MATCH('Composite Data'!AH$2,'EMIS Data'!$A$8:$DG$8,0),FALSE) -> 5784 | AI3: =VLOOKUP($A3,'EMIS Data'!$A$10:$DG$16,MATCH('Composite Data'!AI$2,'EMIS Data'!$A$8:$DG$8,0),FALSE) -> 9485 | AJ3: =VLOOKUP($A3,'EMIS Data'!$A$10:$DG$16,MATCH('Composite Data'!AJ$2,'EMIS Data'!$A$8:$DG$8,0),FALSE) -> 10587 | AK3: =VLOOKUP($A3,'EMIS Data'!$A$10:$DG$16,MATCH('Composite Data'!AK$2,'EMIS Data'!$A$8:$DG$8,0),FALSE) -> 9496 | AL3: =VLOOKUP($A3,'EMIS Data'!$A$10:$DG$16,MATCH('Composite Data'!AL$2,'EMIS Data'!$A$8:$DG$8,0),FALSE) -> 14288 | AM3: =VLOOKUP($A3,'EMIS Data'!$A$10:$DG$16,MATCH('Composite Data'!AM$2,'EMIS Data'!$A$8:$DG$8,0),FALSE) -> 5781 | AN3: =VLOOKUP($A3,'EMIS Data'!$A$10:$DG$16,MATCH('Composite Data'!AN$2,'EMIS Data'!$A$8:$DG$8,0),FALSE) -> 9680 | AO3: =VLOOKUP($A3,'EMIS Data'!$A$10:$DG$16,MATCH('Composite Data'!AO$2,'EMIS Data'!$A$8:$DG$8,0),FALSE) -> 14857 | AP3: =VLOOKUP($A3,'EMIS Data'!$A$10:$DG$16,MATCH('Composite Data'!AP$2,'EMIS Data'!$A$8:$DG$8,0),FALSE) -> 7358 | AQ3: =VLOOKUP($A3,'EMIS Data'!$A$10:$DG$16,MATCH('Composite Data'!AQ$2,'EMIS Data'!$A$8:$DG$8,0),FALSE) -> 11002
A4: POWC 01 Post-operative wound care 2022 | B4: =VLOOKUP($A4,'Other Data'!$A$4:$J$10,MATCH('Composite Data'!B$2,'Other Data'!$A$2:$J$2,0),FALSE) -> 55 | C4: =VLOOKUP($A4,'Other Data'!$A$4:$J$10,MATCH('Composite Data'!C$2,'Other Data'!$A$2:$J$2,0),FALSE) -> 13 | D4: =VLOOKUP($A4,'Other Data'!$A$4:$J$10,MATCH('Composite Data'!D$2,'Other Data'!$A$2:$J$2,0),FALSE) -> 16 | E4: =VLOOKUP($A4,'EMIS Data'!$A$10:$DG$16,MATCH('Composite Data'!E$2,'EMIS Data'!$A$8:$DG$8,0),FALSE) -> 162 | F4: =VLOOKUP($A4,'EMIS Data'!$A$10:$DG$16,MATCH('Composite Data'!F$2,'EMIS Data'!$A$8:$DG$8,0),FALSE) -> 8 | G4: =VLOOKUP($A4,'Other Data'!$A$4:$J$10,MATCH('Composite Data'!G$2,'Other Data'!$A$2:$J$2,0),FALSE) -> 1 | H4: =VLOOKUP($A4,'Other Data'!$A$4:$J$10,MATCH('Composite Data'!H$2,'Other Data'!$A$2:$J$2,0),FALSE) -> 12 | I4: =VLOOKUP($A4,'EMIS Data'!$A$10:$DG$16,MATCH('Composite Data'!I$2,'EMIS Data'!$A$8:$DG$8,0),FALSE) -> 17 | J4: 73 | K4: =VLOOKUP($A4,'EMIS Data'!$A$10:$DG$16,MATCH('Composite Data'!K$2,'EMIS Data'!$A$8:$DG$8,0),FALSE) -> 47 | L4: =VLOOKUP($A4,'EMIS Data'!$A$10:$DG$16,MATCH('Composite Data'!L$2,'EMIS Data'!$A$8:$DG$8,0),FALSE) -> 7 | M4: =VLOOKUP($A4,'EMIS Data'!$A$10:$DG$16,MATCH('Composite Data'!M$2,'EMIS Data'!$A$8:$DG$8,0),FALSE) -> 25 | N4: =VLOOKUP($A4,'EMIS Data'!$A$10:$DG$16,MATCH('Composite Data'!N$2,'EMIS Data'!$A$8:$DG$8,0),FALSE) -> 15 | O4: =VLOOKUP($A4,'EMIS Data'!$A$10:$DG$16,MATCH('Composite Data'!O$2,'EMIS Data'!$A$8:$DG$8,0),FALSE) -> 25 | P4: =VLOOKUP($A4,'EMIS Data'!$A$10:$DG$16,MATCH('Composite Data'!P$2,'EMIS Data'!$A$8:$DG$8,0),FALSE) -> 2 | Q4: =VLOOKUP($A4,'EMIS Data'!$A$10:$DG$16,MATCH('Composite Data'!Q$2,'EMIS Data'!$A$8:$DG$8,0),FALSE) -> 13 | R4: =VLOOKUP($A4,'EMIS Data'!$A$10:$DG$16,MATCH('Composite Data'!R$2,'EMIS Data'!$A$8:$DG$8,0),FALSE) -> 9 | S4: =VLOOKUP($A4,'EMIS Data'!$A$10:$DG$16,MATCH('Composite Data'!S$2,'EMIS Data'!$A$8:$DG$8,0),FALSE) -> 68 | T4: =VLOOKUP($A4,'EMIS Data'!$A$10:$DG$16,MATCH('Composite Data'!T$2,'EMIS Data'!$A$8:$DG$8,0),FALSE) -> 45 | U4: =VLOOKUP($A4,'EMIS Data'!$A$10:$DG$16,MATCH('Composite Data'!U$2,'EMIS Data'!$A$8:$DG$8,0),FALSE) -> 8 | V4: =VLOOKUP($A4,'EMIS Data'!$A$10:$DG$16,MATCH('Composite Data'!V$2,'EMIS Data'!$A$8:$DG$8,0),FALSE) -> 15 | W4: =VLOOKUP($A4,'EMIS Data'!$A$10:$DG$16,MATCH('Composite Data'!W$2,'EMIS Data'!$A$8:$DG$8,0),FALSE) -> 5 | X4: =VLOOKUP($A4,'EMIS Data'!$A$10:$DG$16,MATCH('Composite Data'!X$2,'EMIS Data'!$A$8:$DG$8,0),FALSE) -> 1 | Y4: =VLOOKUP($A4,'EMIS Data'!$A$10:$DG$16,MATCH('Composite Data'!Y$2,'EMIS Data'!$A$8:$DG$8,0),FALSE) -> 19 | Z4: =VLOOKUP($A4,'EMIS Data'!$A$10:$DG$16,MATCH('Composite Data'!Z$2,'EMIS Data'!$A$8:$DG$8,0),FALSE) -> 13 | AA4: =VLOOKUP($A4,'EMIS Data'!$A$10:$DG$16,MATCH('Composite Data'!AA$2,'EMIS Data'!$A$8:$DG$8,0),FALSE) -> 15 | AB4: =VLOOKUP($A4,'EMIS Data'!$A$10:$DG$16,MATCH('Composite Data'!AB$2,'EMIS Data'!$A$8:$DG$8,0),FALSE) -> 54 | AC4: =VLOOKUP($A4,'EMIS Data'!$A$10:$DG$16,MATCH('Composite Data'!AC$2,'EMIS Data'!$A$8:$DG$8,0),FALSE) -> 9 | AD4: =VLOOKUP($A4,'EMIS Data'!$A$10:$DG$16,MATCH('Composite Data'!AD$2,'EMIS Data'!$A$8:$DG$8,0),FALSE) -> 105 | AE4: =VLOOKUP($A4,'EMIS Data'!$A$10:$DG$16,MATCH('Composite Data'!AE$2,'EMIS Data'!$A$8:$DG$8,0),FALSE) -> 6 | AF4: =VLOOKUP($A4,'EMIS Data'!$A$10:$DG$16,MATCH('Composite Data'!AF$2,'EMIS Data'!$A$8:$DG$8,0),FALSE) -> 0 | AG4: =VLOOKUP($A4,'EMIS Data'!$A$10:$DG$16,MATCH('Composite Data'!AG$2,'EMIS Data'!$A$8:$DG$8,0),FALSE) -> 46 | AH4: =VLOOKUP($A4,'EMIS Data'!$A$10:$DG$16,MATCH('Composite Data'!AH$2,'EMIS Data'!$A$8:$DG$8,0),FALSE) -> 10 | AI4: =VLOOKUP($A4,'EMIS Data'!$A$10:$DG$16,MATCH('Composite Data'!AI$2,'EMIS Data'!$A$8:$DG$8,0),FALSE) -> 36 | AJ4: =VLOOKUP($A4,'EMIS Data'!$A$10:$DG$16,MATCH('Composite Data'!AJ$2,'EMIS Data'!$A$8:$DG$8,0),FALSE) -> 29 | AK4: =VLOOKUP($A4,'EMIS Data'!$A$10:$DG$16,MATCH('Composite Data'!AK$2,'EMIS Data'!$A$8:$DG$8,0),FALSE) -> 79 | AL4: =VLOOKUP($A4,'EMIS Data'!$A$10:$DG$16,MATCH('Composite Data'!AL$2,'EMIS Data'!$A$8:$DG$8,0),FALSE) -> 0 | AM4: =VLOOKUP($A4,'EMIS Data'!$A$10:$DG$16,MATCH('Composite Data'!AM$2,'EMIS Data'!$A$8:$DG$8,0),FALSE) -> 46 | AN4: =VLOOKUP($A4,'EMIS Data'!$A$10:$DG$16,MATCH('Composite Data'!AN$2,'EMIS Data'!$A$8:$DG$8,0),FALSE) -> 55 | AO4: =VLOOKUP($A4,'EMIS Data'!$A$10:$DG$16,MATCH('Composite Data'!AO$2,'EMIS Data'!$A$8:$DG$8,0),FALSE) -> 86 | AP4: =VLOOKUP($A4,'EMIS Data'!$A$10:$DG$16,MATCH('Composite Data'!AP$2,'EMIS Data'!$A$8:$DG$8,0),FALSE) -> 18 | AQ4: =VLOOKUP($A4,'EMIS Data'!$A$10:$DG$16,MATCH('Composite Data'!AQ$2,'EMIS Data'!$A$8:$DG$8,0),FALSE) -> 52
A5: POWC 01 Post-operative wound care Activity | B5: =VLOOKUP($A5,'Other Data'!$A$4:$J$10,MATCH('Composite Data'!B$2,'Other Data'!$A$2:$J$2,0),FALSE) ->  | C5: =VLOOKUP($A5,'Other Data'!$A$4:$J$10,MATCH('Composite Data'!C$2,'Other Data'!$A$2:$J$2,0),FALSE) ->  | D5: =VLOOKUP($A5,'Other Data'!$A$4:$J$10,MATCH('Composite Data'!D$2,'Other Data'!$A$2:$J$2,0),FALSE) ->  | E5: =VLOOKUP($A5,'EMIS Data'!$A$10:$DG$16,MATCH('Composite Data'!E$2,'EMIS Data'!$A$8:$DG$8,0),FALSE) -> 718 | F5: =VLOOKUP($A5,'EMIS Data'!$A$10:$DG$16,MATCH('Composite Data'!F$2,'EMIS Data'!$A$8:$DG$8,0),FALSE) -> 8 | G5: =VLOOKUP($A5,'Other Data'!$A$4:$J$10,MATCH('Composite Data'!G$2,'Other Data'!$A$2:$J$2,0),FALSE) ->  | H5: =VLOOKUP($A5,'Other Data'!$A$4:$J$10,MATCH('Composite Data'!H$2,'Other Data'!$A$2:$J$2,0),FALSE) ->  | I5: =VLOOKUP($A5,'EMIS Data'!$A$10:$DG$16,MATCH('Composite Data'!I$2,'EMIS Data'!$A$8:$DG$8,0),FALSE) -> 27 | K5: =VLOOKUP($A5,'EMIS Data'!$A$10:$DG$16,MATCH('Composite Data'!K$2,'EMIS Data'!$A$8:$DG$8,0),FALSE) -> 91 | L5: =VLOOKUP($A5,'EMIS Data'!$A$10:$DG$16,MATCH('Composite Data'!L$2,'EMIS Data'!$A$8:$DG$8,0),FALSE) -> 8 | M5: =VLOOKUP($A5,'EMIS Data'!$A$10:$DG$16,MATCH('Composite Data'!M$2,'EMIS Data'!$A$8:$DG$8,0),FALSE) -> 46 | N5: =VLOOKUP($A5,'EMIS Data'!$A$10:$DG$16,MATCH('Composite Data'!N$2,'EMIS Data'!$A$8:$DG$8,0),FALSE) -> 19 | O5: =VLOOKUP($A5,'EMIS Data'!$A$10:$DG$16,MATCH('Composite Data'!O$2,'EMIS Data'!$A$8:$DG$8,0),FALSE) -> 35 | P5: =VLOOKUP($A5,'EMIS Data'!$A$10:$DG$16,MATCH('Composite Data'!P$2,'EMIS Data'!$A$8:$DG$8,0),FALSE) -> 2 | Q5: =VLOOKUP($A5,'EMIS Data'!$A$10:$DG$16,MATCH('Composite Data'!Q$2,'EMIS Data'!$A$8:$DG$8,0),FALSE) -> 21 | R5: =VLOOKUP($A5,'EMIS Data'!$A$10:$DG$16,MATCH('Composite Data'!R$2,'EMIS Data'!$A$8:$DG$8,0),FALSE) -> 39 | S5: =VLOOKUP($A5,'EMIS Data'!$A$10:$DG$16,MATCH('Composite Data'!S$2,'EMIS Data'!$A$8:$DG$8,0),FALSE) -> 232 | T5: =VLOOKUP($A5,'EMIS Data'!$A$10:$DG$16,MATCH('Composite Data'!T$2,'EMIS Data'!$A$8:$DG$8,0),FALSE) -> 92 | U5: =VLOOKUP($A5,'EMIS Data'!$A$10:$DG$16,MATCH('Composite Data'!U$2,'EMIS Data'!$A$8:$DG$8,0),FALSE) -> 13 | V5: =VLOOKUP($A5,'EMIS Data'!$A$10:$DG$16,MATCH('Composite Data'!V$2,'EMIS Data'!$A$8:$DG$8,0),FALSE) -> 25 | W5: =VLOOKUP($A5,'EMIS Data'!$A$10:$DG$16,MATCH('Composite Data'!W$2,'EMIS Data'!$A$8:$DG$8,0),FALSE) -> 6 | X5: =VLOOKUP($A5,'EMIS Data'!$A$10:$DG$16,MATCH('Composite Data'!X$2,'EMIS Data'!$A$8:$DG$8,0),FALSE) -> 1 | Y5: =VLOOKUP($A5,'EMIS Data'!$A$10:$DG$16,MATCH('Composite Data'!Y$2,'EMIS Data'!$A$8:$DG$8,0),FALSE) -> 27 | Z5: =VLOOKUP($A5,'EMIS Data'!$A$10:$DG$16,MATCH('Composite Data'!Z$2,'EMIS Data'!$A$8:$DG$8,0),FALSE) -> 34 | AA5: =VLOOKUP($A5,'EMIS Data'!$A$10:$DG$16,MATCH('Composite Data'!AA$2,'EMIS Data'!$A$8:$DG$8,0),FALSE) -> 17 | AB5: =VLOOKUP($A5,'EMIS Data'!$A$10:$DG$16,MATCH('Composite Data'!AB$2,'EMIS Data'!$A$8:$DG$8,0),FALSE) -> 103 | AC5: =VLOOKUP($A5,'EMIS Data'!$A$10:$DG$16,MATCH('Composite Data'!AC$2,'EMIS Data'!$A$8:$DG$8,0),FALSE) -> 12 | AD5: =VLOOKUP($A5,'EMIS Data'!$A$10:$DG$16,MATCH('Composite Data'!AD$2,'EMIS Data'!$A$8:$DG$8,0),FALSE) -> 240 | AE5: =VLOOKUP($A5,'EMIS Data'!$A$10:$DG$16,MATCH('Composite Data'!AE$2,'EMIS Data'!$A$8:$DG$8,0),FALSE) -> 6 | AF5: =VLOOKUP($A5,'EMIS Data'!$A$10:$DG$16,MATCH('Composite Data'!AF$2,'EMIS Data'!$A$8:$DG$8,0),FALSE) -> 0 | AG5: =VLOOKUP($A5,'EMIS Data'!$A$10:$DG$16,MATCH('Composite Data'!AG$2,'EMIS Data'!$A$8:$DG$8,0),FALSE) -> 110 | AH5: =VLOOKUP($A5,'EMIS Data'!$A$10:$DG$16,MATCH('Composite Data'!AH$2,'EMIS Data'!$A$8:$DG$8,0),FALSE) -> 87 | AI5: =VLOOKUP($A5,'EMIS Data'!$A$10:$DG$16,MATCH('Composite Data'!AI$2,'EMIS Data'!$A$8:$DG$8,0),FALSE) -> 56 | AJ5: =VLOOKUP($A5,'EMIS Data'!$A$10:$DG$16,MATCH('Composite Data'!AJ$2,'EMIS Data'!$A$8:$DG$8,0),FALSE) -> 73 | AK5: =VLOOKUP($A5,'EMIS Data'!$A$10:$DG$16,MATCH('Composite Data'!AK$2,'EMIS Data'!$A$8:$DG$8,0),FALSE) -> 206 | AL5: =VLOOKUP($A5,'EMIS Data'!$A$10:$DG$16,MATCH('Composite Data'!AL$2,'EMIS Data'!$A$8:$DG$8,0),FALSE) -> 0 | AM5: =VLOOKUP($A5,'EMIS Data'!$A$10:$DG$16,MATCH('Composite Data'!AM$2,'EMIS Data'!$A$8:$DG$8,0),FALSE) -> 46 | AN5: =VLOOKUP($A5,'EMIS Data'!$A$10:$DG$16,MATCH('Composite Data'!AN$2,'EMIS Data'!$A$8:$DG$8,0),FALSE) -> 65 | AO5: =VLOOKUP($A5,'EMIS Data'!$A$10:$DG$16,MATCH('Composite Data'!AO$2,'EMIS Data'!$A$8:$DG$8,0),FALSE) -> 102 | AP5: =VLOOKUP($A5,'EMIS Data'!$A$10:$DG$16,MATCH('Composite Data'!AP$2,'EMIS Data'!$A$8:$DG$8,0),FALSE) -> 26 | AQ5: =VLOOKUP($A5,'EMIS Data'!$A$10:$DG$16,MATCH('Composite Data'!AQ$2,'EMIS Data'!$A$8:$DG$8,0),FALSE) -> 59
A6: POWC 0101 Referral to tissue viability service | B6: =VLOOKUP($A6,'Other Data'!$A$4:$J$10,MATCH('Composite Data'!B$2,'Other Data'!$A$2:$J$2,0),FALSE) ->  | C6: =VLOOKUP($A6,'Other Data'!$A$4:$J$10,MATCH('Composite Data'!C$2,'Other Data'!$A$2:$J$2,0),FALSE) ->  | D6: =VLOOKUP($A6,'Other Data'!$A$4:$J$10,MATCH('Composite Data'!D$2,'Other Data'!$A$2:$J$2,0),FALSE) ->  | E6: =VLOOKUP($A6,'EMIS Data'!$A$10:$DG$16,MATCH('Composite Data'!E$2,'EMIS Data'!$A$8:$DG$8,0),FALSE) -> 1 | F6: =VLOOKUP($A6,'EMIS Data'!$A$10:$DG$16,MATCH('Composite Data'!F$2,'EMIS Data'!$A$8:$DG$8,0),FALSE) -> 0 | G6: =VLOOKUP($A6,'Other Data'!$A$4:$J$10,MATCH('Composite Data'!G$2,'Other Data'!$A$2:$J$2,0),FALSE) ->  | H6: =VLOOKUP($A6,'Other Data'!$A$4:$J$10,MATCH('Composite Data'!H$2,'Other Data'!$A$2:$J$2,0),FALSE) ->  | I6: =VLOOKUP($A6,'EMIS Data'!$A$10:$DG$16,MATCH('Composite Data'!I$2,'EMIS Data'!$A$8:$DG$8,0),FALSE) -> 0 | J6: 3 | K6: =VLOOKUP($A6,'EMIS Data'!$A$10:$DG$16,MATCH('Composite Data'!K$2,'EMIS Data'!$A$8:$DG$8,0),FALSE) -> 2 | L6: =VLOOKUP($A6,'EMIS Data'!$A$10:$DG$16,MATCH('Composite Data'!L$2,'EMIS Data'!$A$8:$DG$8,0),FALSE) -> 0 | M6: =VLOOKUP($A6,'EMIS Data'!$A$10:$DG$16,MATCH('Composite Data'!M$2,'EMIS Data'!$A$8:$DG$8,0),FALSE) -> 0 | N6: =VLOOKUP($A6,'EMIS Data'!$A$10:$DG$16,MATCH('Composite Data'!N$2,'EMIS Data'!$A$8:$DG$8,0),FALSE) -> 1 | O6: =VLOOKUP($A6,'EMIS Data'!$A$10:$DG$16,MATCH('Composite Data'!O$2,'EMIS Data'!$A$8:$DG$8,0),FALSE) -> 0 | P6: =VLOOKUP($A6,'EMIS Data'!$A$10:$DG$16,MATCH('Composite Data'!P$2,'EMIS Data'!$A$8:$DG$8,0),FALSE) -> 0 | Q6: =VLOOKUP($A6,'EMIS Data'!$A$10:$DG$16,MATCH('Composite Data'!Q$2,'EMIS Data'!$A$8:$DG$8,0),FALSE) -> 0 | R6: =VLOOKUP($A6,'EMIS Data'!$A$10:$DG$16,MATCH('Composite Data'!R$2,'EMIS Data'!$A$8:$DG$8,0),FALSE) -> 0 | S6: =VLOOKUP($A6,'EMIS Data'!$A$10:$DG$16,MATCH('Composite Data'!S$2,'EMIS Data'!$A$8:$DG$8,0),FALSE) -> 1 | T6: =VLOOKUP($A6,'EMIS Data'!$A$10:$DG$16,MATCH('Composite Data'!T$2,'EMIS Data'!$A$8:$DG$8,0),FALSE) -> 0 | U6: =VLOOKUP($A6,'EMIS Data'!$A$10:$DG$16,MATCH('Composite Data'!U$2,'EMIS Data'!$A$8:$DG$8,0),FALSE) -> 0 | V6: =VLOOKUP($A6,'EMIS Data'!$A$10:$DG$16,MATCH('Composite Data'!V$2,'EMIS Data'!$A$8:$DG$8,0),FALSE) -> 0 | W6: =VLOOKUP($A6,'EMIS Data'!$A$10:$DG$16,MATCH('Composite Data'!W$2,'EMIS Data'!$A$8:$DG$8,0),FALSE) -> 0 | X6: =VLOOKUP($A6,'EMIS Data'!$A$10:$DG$16,MATCH('Composite Data'!X$2,'EMIS Data'!$A$8:$DG$8,0),FALSE) -> 0 | Y6: =VLOOKUP($A6,'EMIS Data'!$A$10:$DG$16,MATCH('Composite Data'!Y$2,'EMIS Data'!$A$8:$DG$8,0),FALSE) -> 0 | Z6: =VLOOKUP($A6,'EMIS Data'!$A$10:$DG$16,MATCH('Composite Data'!Z$2,'EMIS Data'!$A$8:$DG$8,0),FALSE) -> 0 | AA6: =VLOOKUP($A6,'EMIS Data'!$A$10:$DG$16,MATCH('Composite Data'!AA$2,'EMIS Data'!$A$8:$DG$8,0),FALSE) -> 0 | AB6: =VLOOKUP($A6,'EMIS Data'!$A$10:$DG$16,MATCH('Composite Data'!AB$2,'EMIS Data'!$A$8:$DG$8,0),FALSE) -> 0 | AC6: =VLOOKUP($A6,'EMIS Data'!$A$10:$DG$16,MATCH('Composite Data'!AC$2,'EMIS Data'!$A$8:$DG$8,0),FALSE) -> 0 | AD6: =VLOOKUP($A6,'EMIS Data'!$A$10:$DG$16,MATCH('Composite Data'!AD$2,'EMIS Data'!$A$8:$DG$8,0),FALSE) -> 0 | AE6: =VLOOKUP($A6,'EMIS Data'!$A$10:$DG$16,MATCH('Composite Data'!AE$2,'EMIS Data'!$A$8:$DG$8,0),FALSE) -> 0 | AF6: =VLOOKUP($A6,'EMIS Data'!$A$10:$DG$16,MATCH('Composite Data'!AF$2,'EMIS Data'!$A$8:$DG$8,0),FALSE) -> 0 | AG6: =VLOOKUP($A6,'EMIS Data'!$A$10:$DG$16,MATCH('Composite Data'!AG$2,'EMIS Data'!$A$8:$DG$8,0),FALSE) -> 4 | AH6: =VLOOKUP($A6,'EMIS Data'!$A$10:$DG$16,MATCH('Composite Data'!AH$2,'EMIS Data'!$A$8:$DG$8,0),FALSE) -> 0 | AI6: =VLOOKUP($A6,'EMIS Data'!$A$10:$DG$16,MATCH('Composite Data'!AI$2,'EMIS Data'!$A$8:$DG$8,0),FALSE) -> 0 | AJ6: =VLOOKUP($A6,'EMIS Data'!$A$10:$DG$16,MATCH('Composite Data'!AJ$2,'EMIS Data'!$A$8:$DG$8,0),FALSE) -> 3 | AK6: =VLOOKUP($A6,'EMIS Data'!$A$10:$DG$16,MATCH('Composite Data'!AK$2,'EMIS Data'!$A$8:$DG$8,0),FALSE) -> 0 | AL6: =VLOOKUP($A6,'EMIS Data'!$A$10:$DG$16,MATCH('Composite Data'!AL$2,'EMIS Data'!$A$8:$DG$8,0),FALSE) -> 0 | AM6: =VLOOKUP($A6,'EMIS Data'!$A$10:$DG$16,MATCH('Composite Data'!AM$2,'EMIS Data'!$A$8:$DG$8,0),FALSE) -> 1 | AN6: =VLOOKUP($A6,'EMIS Data'!$A$10:$DG$16,MATCH('Composite Data'!AN$2,'EMIS Data'!$A$8:$DG$8,0),FALSE) -> 0 | AO6: =VLOOKUP($A6,'EMIS Data'!$A$10:$DG$16,MATCH('Composite Data'!AO$2,'EMIS Data'!$A$8:$DG$8,0),FALSE) -> 0 | AP6: =VLOOKUP($A6,'EMIS Data'!$A$10:$DG$16,MATCH('Composite Data'!AP$2,'EMIS Data'!$A$8:$DG$8,0),FALSE) -> 0 | AQ6: =VLOOKUP($A6,'EMIS Data'!$A$10:$DG$16,MATCH('Composite Data'!AQ$2,'EMIS Data'!$A$8:$DG$8,0),FALSE) -> 0
A7: POWC 0102 Refer to district nurse | B7: =VLOOKUP($A7,'Other Data'!$A$4:$J$10,MATCH('Composite Data'!B$2,'Other Data'!$A$2:$J$2,0),FALSE) -> 2 | C7: =VLOOKUP($A7,'Other Data'!$A$4:$J$10,MATCH('Composite Data'!C$2,'Other Data'!$A$2:$J$2,0),FALSE) -> 0 | D7: =VLOOKUP($A7,'Other Data'!$A$4:$J$10,MATCH('Composite Data'!D$2,'Other Data'!$A$2:$J$2,0),FALSE) -> 0 | E7: =VLOOKUP($A7,'EMIS Data'!$A$10:$DG$16,MATCH('Composite Data'!E$2,'EMIS Data'!$A$8:$DG$8,0),FALSE) -> 4 | F7: =VLOOKUP($A7,'EMIS Data'!$A$10:$DG$16,MATCH('Composite Data'!F$2,'EMIS Data'!$A$8:$DG$8,0),FALSE) -> 0 | G7: =VLOOKUP($A7,'Other Data'!$A$4:$J$10,MATCH('Composite Data'!G$2,'Other Data'!$A$2:$J$2,0),FALSE) -> 0 | H7: =VLOOKUP($A7,'Other Data'!$A$4:$J$10,MATCH('Composite Data'!H$2,'Other Data'!$A$2:$J$2,0),FALSE) -> 1 | I7: =VLOOKUP($A7,'EMIS Data'!$A$10:$DG$16,MATCH('Composite Data'!I$2,'EMIS Data'!$A$8:$DG$8,0),FALSE) -> 0 | J7: 3 | K7: =VLOOKUP($A7,'EMIS Data'!$A$10:$DG$16,MATCH('Composite Data'!K$2,'EMIS Data'!$A$8:$DG$8,0),FALSE) -> 6 | L7: =VLOOKUP($A7,'EMIS Data'!$A$10:$DG$16,MATCH('Composite Data'!L$2,'EMIS Data'!$A$8:$DG$8,0),FALSE) -> 0 | M7: =VLOOKUP($A7,'EMIS Data'!$A$10:$DG$16,MATCH('Composite Data'!M$2,'EMIS Data'!$A$8:$DG$8,0),FALSE) -> 0 | N7: =VLOOKUP($A7,'EMIS Data'!$A$10:$DG$16,MATCH('Composite Data'!N$2,'EMIS Data'!$A$8:$DG$8,0),FALSE) -> 1 | O7: =VLOOKUP($A7,'EMIS Data'!$A$10:$DG$16,MATCH('Composite Data'!O$2,'EMIS Data'!$A$8:$DG$8,0),FALSE) -> 0 | P7: =VLOOKUP($A7,'EMIS Data'!$A$10:$DG$16,MATCH('Composite Data'!P$2,'EMIS Data'!$A$8:$DG$8,0),FALSE) -> 0 | Q7: =VLOOKUP($A7,'EMIS Data'!$A$10:$DG$16,MATCH('Composite Data'!Q$2,'EMIS Data'!$A$8:$DG$8,0),FALSE) -> 0 | R7: =VLOOKUP($A7,'EMIS Data'!$A$10:$DG$16,MATCH('Composite Data'!R$2,'EMIS Data'!$A$8:$DG$8,0),FALSE) -> 0 | S7: =VLOOKUP($A7,'EMIS Data'!$A$10:$DG$16,MATCH('Composite Data'!S$2,'EMIS Data'!$A$8:$DG$8,0),FALSE) -> 4 | T7: =VLOOKUP($A7,'EMIS Data'!$A$10:$DG$16,MATCH('Composite Data'!T$2,'EMIS Data'!$A$8:$DG$8,0),FALSE) -> 0 | U7: =VLOOKUP($A7,'EMIS Data'!$A$10:$DG$16,MATCH('Composite Data'!U$2,'EMIS Data'!$A$8:$DG$8,0),FALSE) -> 0 | V7: =VLOOKUP($A7,'EMIS Data'!$A$10:$DG$16,MATCH('Composite Data'!V$2,'EMIS Data'!$A$8:$DG$8,0),FALSE) -> 0 | W7: =VLOOKUP($A7,'EMIS Data'!$A$10:$DG$16,MATCH('Composite Data'!W$2,'EMIS Data'!$A$8:$DG$8,0),FALSE) -> 0 | X7: =VLOOKUP($A7,'EMIS Data'!$A$10:$DG$16,MATCH('Composite Data'!X$2,'EMIS Data'!$A$8:$DG$8,0),FALSE) -> 0 | Y7: =VLOOKUP($A7,'EMIS Data'!$A$10:$DG$16,MATCH('Composite Data'!Y$2,'EMIS Data'!$A$8:$DG$8,0),FALSE) -> 1 | Z7: =VLOOKUP($A7,'EMIS Data'!$A$10:$DG$16,MATCH('Composite Data'!Z$2,'EMIS Data'!$A$8:$DG$8,0),FALSE) -> 2 | AA7: =VLOOKUP($A7,'EMIS Data'!$A$10:$DG$16,MATCH('Composite Data'!AA$2,'EMIS Data'!$A$8:$DG$8,0),FALSE) -> 0 | AB7: =VLOOKUP($A7,'EMIS Data'!$A$10:$DG$16,MATCH('Composite Data'!AB$2,'EMIS Data'!$A$8:$DG$8,0),FALSE) -> 0 | AC7: =VLOOKUP($A7,'EMIS Data'!$A$10:$DG$16,MATCH('Composite Data'!AC$2,'EMIS Data'!$A$8:$DG$8,0),FALSE) -> 0 | AD7: =VLOOKUP($A7,'EMIS Data'!$A$10:$DG$16,MATCH('Composite Data'!AD$2,'EMIS Data'!$A$8:$DG$8,0),FALSE) -> 4 | AE7: =VLOOKUP($A7,'EMIS Data'!$A$10:$DG$16,MATCH('Composite Data'!AE$2,'EMIS Data'!$A$8:$DG$8,0),FALSE) -> 0 | AF7: =VLOOKUP($A7,'EMIS Data'!$A$10:$DG$16,MATCH('Composite Data'!AF$2,'EMIS Data'!$A$8:$DG$8,0),FALSE) -> 0 | AG7: =VLOOKUP($A7,'EMIS Data'!$A$10:$DG$16,MATCH('Composite Data'!AG$2,'EMIS Data'!$A$8:$DG$8,0),FALSE) -> 0 | AH7: =VLOOKUP($A7,'EMIS Data'!$A$10:$DG$16,MATCH('Composite Data'!AH$2,'EMIS Data'!$A$8:$DG$8,0),FALSE) -> 0 | AI7: =VLOOKUP($A7,'EMIS Data'!$A$10:$DG$16,MATCH('Composite Data'!AI$2,'EMIS Data'!$A$8:$DG$8,0),FALSE) -> 2 | AJ7: =VLOOKUP($A7,'EMIS Data'!$A$10:$DG$16,MATCH('Composite Data'!AJ$2,'EMIS Data'!$A$8:$DG$8,0),FALSE) -> 2 | AK7: =VLOOKUP($A7,'EMIS Data'!$A$10:$DG$16,MATCH('Composite Data'!AK$2,'EMIS Data'!$A$8:$DG$8,0),FALSE) -> 3 | AL7: =VLOOKUP($A7,'EMIS Data'!$A$10:$DG$16,MATCH('Composite Data'!AL$2,'EMIS Data'!$A$8:$DG$8,0),FALSE) -> 0 | AM7: =VLOOKUP($A7,'EMIS Data'!$A$10:$DG$16,MATCH('Composite Data'!AM$2,'EMIS Data'!$A$8:$DG$8,0),FALSE) -> 2 | AN7: =VLOOKUP($A7,'EMIS Data'!$A$10:$DG$16,MATCH('Composite Data'!AN$2,'EMIS Data'!$A$8:$DG$8,0),FALSE) -> 3 | AO7: =VLOOKUP($A7,'EMIS Data'!$A$10:$DG$16,MATCH('Composite Data'!AO$2,'EMIS Data'!$A$8:$DG$8,0),FALSE) -> 3 | AP7: =VLOOKUP($A7,'EMIS Data'!$A$10:$DG$16,MATCH('Composite Data'!AP$2,'EMIS Data'!$A$8:$DG$8,0),FALSE) -> 1 | AQ7: =VLOOKUP($A7,'EMIS Data'!$A$10:$DG$16,MATCH('Composite Data'!AQ$2,'EMIS Data'!$A$8:$DG$8,0),FALSE) -> 3
A8: POWC 0103 Orthopaedic referral | B8: =VLOOKUP($A8,'Other Data'!$A$4:$J$10,MATCH('Composite Data'!B$2,'Other Data'!$A$2:$J$2,0),FALSE) -> 1 | C8: =VLOOKUP($A8,'Other Data'!$A$4:$J$10,MATCH('Composite Data'!C$2,'Other Data'!$A$2:$J$2,0),FALSE) -> 0 | D8: =VLOOKUP($A8,'Other Data'!$A$4:$J$10,MATCH('Composite Data'!D$2,'Other Data'!$A$2:$J$2,0),FALSE) -> 0 | E8: =VLOOKUP($A8,'EMIS Data'!$A$10:$DG$16,MATCH('Composite Data'!E$2,'EMIS Data'!$A$8:$DG$8,0),FALSE) -> 8 | F8: =VLOOKUP($A8,'EMIS Data'!$A$10:$DG$16,MATCH('Composite Data'!F$2,'EMIS Data'!$A$8:$DG$8,0),FALSE) -> 0 | G8: =VLOOKUP($A8,'Other Data'!$A$4:$J$10,MATCH('Composite Data'!G$2,'Other Data'!$A$2:$J$2,0),FALSE) -> 0 | H8: =VLOOKUP($A8,'Other Data'!$A$4:$J$10,MATCH('Composite Data'!H$2,'Other Data'!$A$2:$J$2,0),FALSE) -> 0 | I8: =VLOOKUP($A8,'EMIS Data'!$A$10:$DG$16,MATCH('Composite Data'!I$2,'EMIS Data'!$A$8:$DG$8,0),FALSE) -> 0 | J8: 4 | K8: =VLOOKUP($A8,'EMIS Data'!$A$10:$DG$16,MATCH('Composite Data'!K$2,'EMIS Data'!$A$8:$DG$8,0),FALSE) -> 4 | L8: =VLOOKUP($A8,'EMIS Data'!$A$10:$DG$16,MATCH('Composite Data'!L$2,'EMIS Data'!$A$8:$DG$8,0),FALSE) -> 1 | M8: =VLOOKUP($A8,'EMIS Data'!$A$10:$DG$16,MATCH('Composite Data'!M$2,'EMIS Data'!$A$8:$DG$8,0),FALSE) -> 1 | N8: =VLOOKUP($A8,'EMIS Data'!$A$10:$DG$16,MATCH('Composite Data'!N$2,'EMIS Data'!$A$8:$DG$8,0),FALSE) -> 2 | O8: =VLOOKUP($A8,'EMIS Data'!$A$10:$DG$16,MATCH('Composite Data'!O$2,'EMIS Data'!$A$8:$DG$8,0),FALSE) -> 3 | P8: =VLOOKUP($A8,'EMIS Data'!$A$10:$DG$16,MATCH('Composite Data'!P$2,'EMIS Data'!$A$8:$DG$8,0),FALSE) -> 0 | Q8: =VLOOKUP($A8,'EMIS Data'!$A$10:$DG$16,MATCH('Composite Data'!Q$2,'EMIS Data'!$A$8:$DG$8,0),FALSE) -> 0 | R8: =VLOOKUP($A8,'EMIS Data'!$A$10:$DG$16,MATCH('Composite Data'!R$2,'EMIS Data'!$A$8:$DG$8,0),FALSE) -> 0 | S8: =VLOOKUP($A8,'EMIS Data'!$A$10:$DG$16,MATCH('Composite Data'!S$2,'EMIS Data'!$A$8:$DG$8,0),FALSE) -> 8 | T8: =VLOOKUP($A8,'EMIS Data'!$A$10:$DG$16,MATCH('Composite Data'!T$2,'EMIS Data'!$A$8:$DG$8,0),FALSE) -> 6 | U8: =VLOOKUP($A8,'EMIS Data'!$A$10:$DG$16,MATCH('Composite Data'!U$2,'EMIS Data'!$A$8:$DG$8,0),FALSE) -> 0 | V8: =VLOOKUP($A8,'EMIS Data'!$A$10:$DG$16,MATCH('Composite Data'!V$2,'EMIS Data'!$A$8:$DG$8,0),FALSE) -> 2 | W8: =VLOOKUP($A8,'EMIS Data'!$A$10:$DG$16,MATCH('Composite Data'!W$2,'EMIS Data'!$A$8:$DG$8,0),FALSE) -> 0 | X8: =VLOOKUP($A8,'EMIS Data'!$A$10:$DG$16,MATCH('Composite Data'!X$2,'EMIS Data'!$A$8:$DG$8,0),FALSE) -> 0 | Y8: =VLOOKUP($A8,'EMIS Data'!$A$10:$DG$16,MATCH('Composite Data'!Y$2,'EMIS Data'!$A$8:$DG$8,0),FALSE) -> 3 | Z8: =VLOOKUP($A8,'EMIS Data'!$A$10:$DG$16,MATCH('Composite Data'!Z$2,'EMIS Data'!$A$8:$DG$8,0),FALSE) -> 5 | AA8: =VLOOKUP($A8,'EMIS Data'!$A$10:$DG$16,MATCH('Composite Data'!AA$2,'EMIS Data'!$A$8:$DG$8,0),FALSE) -> 1 | AB8: =VLOOKUP($A8,'EMIS Data'!$A$10:$DG$16,MATCH('Composite Data'!AB$2,'EMIS Data'!$A$8:$DG$8,0),FALSE) -> 7 | AC8: =VLOOKUP($A8,'EMIS Data'!$A$10:$DG$16,MATCH('Composite Data'!AC$2,'EMIS Data'!$A$8:$DG$8,0),FALSE) -> 3 | AD8: =VLOOKUP($A8,'EMIS Data'!$A$10:$DG$16,MATCH('Composite Data'!AD$2,'EMIS Data'!$A$8:$DG$8,0),FALSE) -> 10 | AE8: =VLOOKUP($A8,'EMIS Data'!$A$10:$DG$16,MATCH('Composite Data'!AE$2,'EMIS Data'!$A$8:$DG$8,0),FALSE) -> 0 | AF8: =VLOOKUP($A8,'EMIS Data'!$A$10:$DG$16,MATCH('Composite Data'!AF$2,'EMIS Data'!$A$8:$DG$8,0),FALSE) -> 0 | AG8: =VLOOKUP($A8,'EMIS Data'!$A$10:$DG$16,MATCH('Composite Data'!AG$2,'EMIS Data'!$A$8:$DG$8,0),FALSE) -> 1 | AH8: =VLOOKUP($A8,'EMIS Data'!$A$10:$DG$16,MATCH('Composite Data'!AH$2,'EMIS Data'!$A$8:$DG$8,0),FALSE) -> 1 | AI8: =VLOOKUP($A8,'EMIS Data'!$A$10:$DG$16,MATCH('Composite Data'!AI$2,'EMIS Data'!$A$8:$DG$8,0),FALSE) -> 4 | AJ8: =VLOOKUP($A8,'EMIS Data'!$A$10:$DG$16,MATCH('Composite Data'!AJ$2,'EMIS Data'!$A$8:$DG$8,0),FALSE) -> 2 | AK8: =VLOOKUP($A8,'EMIS Data'!$A$10:$DG$16,MATCH('Composite Data'!AK$2,'EMIS Data'!$A$8:$DG$8,0),FALSE) -> 5 | AL8: =VLOOKUP($A8,'EMIS Data'!$A$10:$DG$16,MATCH('Composite Data'!AL$2,'EMIS Data'!$A$8:$DG$8,0),FALSE) -> 0 | AM8: =VLOOKUP($A8,'EMIS Data'!$A$10:$DG$16,MATCH('Composite Data'!AM$2,'EMIS Data'!$A$8:$DG$8,0),FALSE) -> 5 | AN8: =VLOOKUP($A8,'EMIS Data'!$A$10:$DG$16,MATCH('Composite Data'!AN$2,'EMIS Data'!$A$8:$DG$8,0),FALSE) -> 7 | AO8: =VLOOKUP($A8,'EMIS Data'!$A$10:$DG$16,MATCH('Composite Data'!AO$2,'EMIS Data'!$A$8:$DG$8,0),FALSE) -> 5 | AP8: =VLOOKUP($A8,'EMIS Data'!$A$10:$DG$16,MATCH('Composite Data'!AP$2,'EMIS Data'!$A$8:$DG$8,0),FALSE) -> 2 | AQ8: =VLOOKUP($A8,'EMIS Data'!$A$10:$DG$16,MATCH('Composite Data'!AQ$2,'EMIS Data'!$A$8:$DG$8,0),FALSE) -> 8
A9: POWC 0104 Advice given about wound care | B9: =VLOOKUP($A9,'Other Data'!$A$4:$J$10,MATCH('Composite Data'!B$2,'Other Data'!$A$2:$J$2,0),FALSE) -> 55 | C9: =VLOOKUP($A9,'Other Data'!$A$4:$J$10,MATCH('Composite Data'!C$2,'Other Data'!$A$2:$J$2,0),FALSE) -> 13 | D9: =VLOOKUP($A9,'Other Data'!$A$4:$J$10,MATCH('Composite Data'!D$2,'Other Data'!$A$2:$J$2,0),FALSE) -> 0 | E9: =VLOOKUP($A9,'EMIS Data'!$A$10:$DG$16,MATCH('Composite Data'!E$2,'EMIS Data'!$A$8:$DG$8,0),FALSE) -> 123 | F9: =VLOOKUP($A9,'EMIS Data'!$A$10:$DG$16,MATCH('Composite Data'!F$2,'EMIS Data'!$A$8:$DG$8,0),FALSE) -> 0 | G9: =VLOOKUP($A9,'Other Data'!$A$4:$J$10,MATCH('Composite Data'!G$2,'Other Data'!$A$2:$J$2,0),FALSE) -> 0 | H9: =VLOOKUP($A9,'Other Data'!$A$4:$J$10,MATCH('Composite Data'!H$2,'Other Data'!$A$2:$J$2,0),FALSE) -> 0 | I9: =VLOOKUP($A9,'EMIS Data'!$A$10:$DG$16,MATCH('Composite Data'!I$2,'EMIS Data'!$A$8:$DG$8,0),FALSE) -> 7 | J9: 41 | K9: =VLOOKUP($A9,'EMIS Data'!$A$10:$DG$16,MATCH('Composite Data'!K$2,'EMIS Data'!$A$8:$DG$8,0),FALSE) -> 43 | L9: =VLOOKUP($A9,'EMIS Data'!$A$10:$DG$16,MATCH('Composite Data'!L$2,'EMIS Data'!$A$8:$DG$8,0),FALSE) -> 3 | M9: =VLOOKUP($A9,'EMIS Data'!$A$10:$DG$16,MATCH('Composite Data'!M$2,'EMIS Data'!$A$8:$DG$8,0),FALSE) -> 2 | N9: =VLOOKUP($A9,'EMIS Data'!$A$10:$DG$16,MATCH('Composite Data'!N$2,'EMIS Data'!$A$8:$DG$8,0),FALSE) -> 12 | O9: =VLOOKUP($A9,'EMIS Data'!$A$10:$DG$16,MATCH('Composite Data'!O$2,'EMIS Data'!$A$8:$DG$8,0),FALSE) -> 0 | P9: =VLOOKUP($A9,'EMIS Data'!$A$10:$DG$16,MATCH('Composite Data'!P$2,'EMIS Data'!$A$8:$DG$8,0),FALSE) -> 1 | Q9: =VLOOKUP($A9,'EMIS Data'!$A$10:$DG$16,MATCH('Composite Data'!Q$2,'EMIS Data'!$A$8:$DG$8,0),FALSE) -> 3 | R9: =VLOOKUP($A9,'EMIS Data'!$A$10:$DG$16,MATCH('Composite Data'!R$2,'EMIS Data'!$A$8:$DG$8,0),FALSE) -> 9 | S9: =VLOOKUP($A9,'EMIS Data'!$A$10:$DG$16,MATCH('Composite Data'!S$2,'EMIS Data'!$A$8:$DG$8,0),FALSE) -> 0 | T9: =VLOOKUP($A9,'EMIS Data'!$A$10:$DG$16,MATCH('Composite Data'!T$2,'EMIS Data'!$A$8:$DG$8,0),FALSE) -> 23 | U9: =VLOOKUP($A9,'EMIS Data'!$A$10:$DG$16,MATCH('Composite Data'!U$2,'EMIS Data'!$A$8:$DG$8,0),FALSE) -> 0 | V9: =VLOOKUP($A9,'EMIS Data'!$A$10:$DG$16,MATCH('Composite Data'!V$2,'EMIS Data'!$A$8:$DG$8,0),FALSE) -> 4 | W9: =VLOOKUP($A9,'EMIS Data'!$A$10:$DG$16,MATCH('Composite Data'!W$2,'EMIS Data'!$A$8:$DG$8,0),FALSE) -> 0 | X9: =VLOOKUP($A9,'EMIS Data'!$A$10:$DG$16,MATCH('Composite Data'!X$2,'EMIS Data'!$A$8:$DG$8,0),FALSE) -> 0 | Y9: =VLOOKUP($A9,'EMIS Data'!$A$10:$DG$16,MATCH('Composite Data'!Y$2,'EMIS Data'!$A$8:$DG$8,0),FALSE) -> 16 | Z9: =VLOOKUP($A9,'EMIS Data'!$A$10:$DG$16,MATCH('Composite Data'!Z$2,'EMIS Data'!$A$8:$DG$8,0),FALSE) -> 5 | AA9: =VLOOKUP($A9,'EMIS Data'!$A$10:$DG$16,MATCH('Composite Data'!AA$2,'EMIS Data'!$A$8:$DG$8,0),FALSE) -> 5 | AB9: =VLOOKUP($A9,'EMIS Data'!$A$10:$DG$16,MATCH('Composite Data'!AB$2,'EMIS Data'!$A$8:$DG$8,0),FALSE) -> 10 | AC9: =VLOOKUP($A9,'EMIS Data'!$A$10:$DG$16,MATCH('Composite Data'!AC$2,'EMIS Data'!$A$8:$DG$8,0),FALSE) -> 2 | AD9: =VLOOKUP($A9,'EMIS Data'!$A$10:$DG$16,MATCH('Composite Data'!AD$2,'EMIS Data'!$A$8:$DG$8,0),FALSE) -> 44 | AE9: =VLOOKUP($A9,'EMIS Data'!$A$10:$DG$16,MATCH('Composite Data'!AE$2,'EMIS Data'!$A$8:$DG$8,0),FALSE) -> 1 | AF9: =VLOOKUP($A9,'EMIS Data'!$A$10:$DG$16,MATCH('Composite Data'!AF$2,'EMIS Data'!$A$8:$DG$8,0),FALSE) -> 0 | AG9: =VLOOKUP($A9,'EMIS Data'!$A$10:$DG$16,MATCH('Composite Data'!AG$2,'EMIS Data'!$A$8:$DG$8,0),FALSE) -> 42 | AH9: =VLOOKUP($A9,'EMIS Data'!$A$10:$DG$16,MATCH('Composite Data'!AH$2,'EMIS Data'!$A$8:$DG$8,0),FALSE) -> 2 | AI9: =VLOOKUP($A9,'EMIS Data'!$A$10:$DG$16,MATCH('Composite Data'!AI$2,'EMIS Data'!$A$8:$DG$8,0),FALSE) -> 5 | AJ9: =VLOOKUP($A9,'EMIS Data'!$A$10:$DG$16,MATCH('Composite Data'!AJ$2,'EMIS Data'!$A$8:$DG$8,0),FALSE) -> 16 | AK9: =VLOOKUP($A9,'EMIS Data'!$A$10:$DG$16,MATCH('Composite Data'!AK$2,'EMIS Data'!$A$8:$DG$8,0),FALSE) -> 61 | AL9: =VLOOKUP($A9,'EMIS Data'!$A$10:$DG$16,MATCH('Composite Data'!AL$2,'EMIS Data'!$A$8:$DG$8,0),FALSE) -> 0 | AM9: =VLOOKUP($A9,'EMIS Data'!$A$10:$DG$16,MATCH('Composite Data'!AM$2,'EMIS Data'!$A$8:$DG$8,0),FALSE) -> 44 | AN9: =VLOOKUP($A9,'EMIS Data'!$A$10:$DG$16,MATCH('Composite Data'!AN$2,'EMIS Data'!$A$8:$DG$8,0),FALSE) -> 0 | AO9: =VLOOKUP($A9,'EMIS Data'!$A$10:$DG$16,MATCH('Composite Data'!AO$2,'EMIS Data'!$A$8:$DG$8,0),FALSE) -> 3 | AP9: =VLOOKUP($A9,'EMIS Data'!$A$10:$DG$16,MATCH('Composite Data'!AP$2,'EMIS Data'!$A$8:$DG$8,0),FALSE) -> 0 | AQ9: =VLOOKUP($A9,'EMIS Data'!$A$10:$DG$16,MATCH('Composite Data'!AQ$2,'EMIS Data'!$A$8:$DG$8,0),FALSE) -> 49

Sheet EMIS Data
A1: POWC 2022 Audit Report
A3: Last Run: | B3: 2022-10-26T14:03:00 | C3: Relative Date: | D3: 2022-03-31
A5: Population Count | B5: Males | C5: Females
A6: 819095 | B6: 410936 | C6: 408159
B8: Organisation Code | C8: F82001 | D8: F82002 | E8: F82003 | F8: F82005 | G8: F82006 | H8: F82007 | I8: F82008 | J8: F82009 | K8: F82010 | L8: F82011 | M8: F82012 | N8: F82013 | O8: F82014 | P8: F82015 | Q8: F82016 | R8: F82017 | S8: F82018 | T8: F82019 | U8: F82021 | V8: F82022 | W8: F82023 | X8: F82025 | Y8: F82027 | Z8: F82028 | AA8: F82030 | AB8: F82031 | AC8: F82033 | AD8: F82034 | AE8: F82038 | AF8: F82039 | AG8: F82040 | AH8: F82042 | AI8: F82045 | AJ8: F82051 | AK8: F82053 | AL8: F82055 | AM8: F82604 | AN8: F82607 | AO8: F82609 | AP8: F82610 | AQ8: F82612 | AR8: F82619 | AS8: F82621 | AT8: F82624 | AU8: F82625 | AV8: F82627 | AW8: F82630 | AX8: F82634 | AY8: F82638 | AZ8: F82642 | BA8: F82647 | BB8: F82648 | BC8: F82649 | BD8: F82650 | BE8: F82660 | BF8: F82661 | BG8: F82663 | BH8: F82666 | BI8: F82670 | BJ8: F82671 | BK8: F82674 | BL8: F82675 | BM8: F82677 | BN8: F82678 | BO8: F82679 | BP8: F82686 | BQ8: F86007 | BR8: F86008 | BS8: F86009 | BT8: F86010 | BU8: F86012 | BV8: F86020 | BW8: F86022 | BX8: F86023 | BY8: F86028 | BZ8: F86032 | CA8: F86034 | CB8: F86040 | CC8: F86042 | CD8: F86057 | CE8: F86060 | CF8: F86064 | CG8: F86066 | CH8: F86081 | CI8: F86083 | CJ8: F86085 | CK8: F86087 | CL8: F86612 | CM8: F86624 | CN8: F86637 | CO8: F86641 | CP8: F86642 | CQ8: F86652 | CR8: F86658 | CS8: F86691 | CT8: F86692 | CU8: F86698 | CV8: F86702 | CW8: F86703 | CX8: F86707 | CY8: F86731 | CZ8: Y00090 | DA8: Y00312 | DB8: Y00918 | DC8: Y01280 | DD8: Y01719 | DE8: Y01795 | DF8: Y02575 | DG8: Y02973 | DH8: Y02987
A9: Search
A10: Currently Registered Regular Patients | C10: 6171 | D10: 6552 | E10: 5821 | F10: 6344 | G10: 12358 | H10: 11272 | I10: 14057 | J10: 20137 | K10: 8021 | L10: 10197 | M10: 3871 | N10: 17162 | O10: 7169 | P10: 5145 | Q10: 7019 | R10: 8634 | S10: 11341 | T10: 6471 | U10: 9910 | V10: 12459 | W10: 3423 | X10: 5703 | Y10: 2201 | Z10: 9637 | AA10: 13830 | AB10: 4475 | AC10: 3569 | AD10: 4804 | AE10: 5399 | AF10: 3908 | AG10: 3038 | AH10: 19444 | AI10: 3537 | AJ10: 9704 | AK10: 3391 | AL10: 9245 | AM10: 5342 | AN10: 5054 | AO10: 4532 | AP10: 2902 | AQ10: 5885 | AR10: 3288 | AS10: 4465 | AT10: 3888 | AU10: 7552 | AV10: 5559 | AW10: 6889 | AX10: 5695 | AY10: 6706 | AZ10: 6931 | BA10: 4966 | BB10: 3521 | BC10: 4550 | BD10: 9143 | BE10: 20667 | BF10: 3851 | BG10: 3937 | BH10: 5034 | BI10: 3262 | BJ10: 3239 | BK10: 5248 | BL10: 3541 | BM10: 7302 | BN10: 4846 | BO10: 5191 | BP10: 3541 | BQ10: 13285 | BR10: 11002 | BS10: 7358 | BT10: 14857 | BU10: 9680 | BV10: 5781 | BW10: 14288 | BX10: 9496 | BY10: 10587 | BZ10: 9485 | CA10: 5784 | CB10: 5538 | CC10: 6308 | CD10: 6534 | CE10: 15880 | CF10: 4859 | CG10: 8071 | CH10: 6340 | CI10: 6577 | CJ10: 3533 | CK10: 7748 | CL10: 3342 | CM10: 3109 | CN10: 5046 | CO10: 7903 | CP10: 4813 | CQ10: 6917 | CR10: 5240 | CS10: 10810 | CT10: 10658 | CU10: 5183 | CV10: 5168 | CW10: 3827 | CX10: 6754 | CY10: 4374 | CZ10: 8097 | DA10: 4894 | DB10: 6583 | DC10: 2307 | DD10: 6838 | DE10: 4111 | DF10: 21272 | DG10: 8563 | DH10: 25207
A11: POWC 01 Post-operative wound care 2022 | C11: 38 | D11: 20 | E11: 24 | F11: 9 | G11: 19 | H11: 34 | I11: 34 | J11: 31 | K11: 1 | L11: 4 | M11: 16 | N11: 8 | O11: 28 | P11: 13 | Q11: 3 | R11: 56 | S11: 50 | T11: 20 | U11: 3 | V11: 17 | W11: 5 | X11: 34 | Y11: 0 | Z11: 4 | AA11: 12 | AB11: 4 | AC11: 0 | AD11: 3 | AE11: 19 | AF11: 6 | AG11: 6 | AH11: 15 | AI11: 1 | AJ11: 7 | AK11: 2 | AL11: 5 | AM11: 1 | AN11: 24 | AO11: 0 | AP11: 0 | AQ11: 2 | AR11: 0 | AS11: 4 | AT11: 2 | AU11: 10 | AV11: 3 | AW11: 0 | AX11: 29 | AY11: 3 | AZ11: 3 | BA11: 0 | BB11: 6 | BC11: 7 | BD11: 18 | BE11: 86 | BF11: 0 | BG11: 0 | BH11: 4 | BI11: 2 | BJ11: 5 | BK11: 3 | BL11: 0 | BM11: 23 | BN11: 0 | BO11: 10 | BP11: 1 | BQ11: 162 | BR11: 52 | BS11: 18 | BT11: 86 | BU11: 55 | BV11: 46 | BW11: 0 | BX11: 79 | BY11: 29 | BZ11: 36 | CA11: 10 | CB11: 2 | CC11: 46 | CD11: 8 | CE11: 0 | CF11: 6 | CG11: 105 | CH11: 9 | CI11: 54 | CJ11: 15 | CK11: 13 | CL11: 19 | CM11: 1 | CN11: 5 | CO11: 15 | CP11: 8 | CQ11: 45 | CR11: 17 | CS11: 68 | CT11: 9 | CU11: 13 | CV11: 2 | CW11: 25 | CX11: 15 | CY11: 25 | CZ11: 7 | DA11: 6 | DB11: 47 | DC11: 0 | DD11: 4 | DE11: 17 | DF11: 23 | DG11: 16 | DH11: 108
A12: POWC 0101 Referral to tissue viability service | C12: 0 | D12: 0 | E12: 0 | F12: 0 | G12: 0 | H12: 0 | I12: 0 | J12: 0 | K12: 0 | L12: 0 | M12: 1 | N12: 0 | O12: 0 | P12: 0 | Q12: 1 | R12: 0 | S12: 0 | T12: 0 | U12: 0 | V12: 0 | W12: 0 | X12: 0 | Y12: 0 | Z12: 0 | AA12: 0 | AB12: 0 | AC12: 0 | AD12: 0 | AE12: 0 | AF12: 0 | AG12: 1 | AH12: 0 | AI12: 0 | AJ12: 0 | AK12: 0 | AL12: 0 | AM12: 0 | AN12: 0 | AO12: 0 | AP12: 0 | AQ12: 0 | AR12: 0 | AS12: 0 | AT12: 0 | AU12: 0 | AV12: 0 | AW12: 0 | AX12: 0 | AY12: 0 | AZ12: 0 | BA12: 0 | BB12: 0 | BC12: 0 | BD12: 0 | BE12: 0 | BF12: 0 | BG12: 0 | BH12: 0 | BI12: 0 | BJ12: 0 | BK12: 0 | BL12: 0 | BM12: 0 | BN12: 0 | BO12: 0 | BP12: 0 | BQ12: 1 | BR12: 0 | BS12: 0 | BT12: 0 | BU12: 0 | BV12: 1 | BW12: 0 | BX12: 0 | BY12: 3 | BZ12: 0 | CA12: 0 | CB12: 0 | CC12: 4 | CD12: 0 | CE12: 0 | CF12: 0 | CG12: 0 | CH12: 0 | CI12: 0 | CJ12: 0 | CK12: 0 | CL12: 0 | CM12: 0 | CN12: 0 | CO12: 0 | CP12: 0 | CQ12: 0 | CR12: 0 | CS12: 1 | CT12: 0 | CU12: 0 | CV12: 0 | CW12: 0 | CX12: 1 | CY12: 0 | CZ12: 0 | DA12: 0 | DB12: 2 | DC12: 0 | DD12: 0 | DE12: 0 | DF12: 0 | DG12: 0 | DH12: 9
A13: POWC 0102 Refer to district nurse | C13: 0 | D13: 0 | E13: 0 | F13: 0 | G13: 0 | H13: 0 | I13: 0 | J13: 0 | K13: 0 | L13: 0 | M13: 0 | N13: 0 | O13: 0 | P13: 0 | Q13: 1 | R13: 0 | S13: 0 | T13: 2 | U13: 0 | V13: 0 | W13: 0 | X13: 0 | Y13: 0 | Z13: 0 | AA13: 0 | AB13: 0 | AC13: 0 | AD13: 0 | AE13: 0 | AF13: 0 | AG13: 1 | AH13: 1 | AI13: 0 | AJ13: 0 | AK13: 0 | AL13: 0 | AM13: 0 | AN13: 0 | AO13: 0 | AP13: 0 | AQ13: 0 | AR13: 0 | AS13: 0 | AT13: 0 | AU13: 0 | AV13: 0 | AW13: 0 | AX13: 1 | AY13: 0 | AZ13: 0 | BA13: 0 | BB13: 0 | BC13: 0 | BD13: 0 | BE13: 1 | BF13: 0 | BG13: 0 | BH13: 0 | BI13: 0 | BJ13: 0 | BK13: 0 | BL13: 0 | BM13: 0 | BN13: 0 | BO13: 1 | BP13: 1 | BQ13: 4 | BR13: 3 | BS13: 1 | BT13: 3 | BU13: 3 | BV13: 2 | BW13: 0 | BX13: 3 | BY13: 2 | BZ13: 2 | CA13: 0 | CB13: 0 | CC13: 0 | CD13: 0 | CE13: 0 | CF13: 0 | CG13: 4 | CH13: 0 | CI13: 0 | CJ13: 0 | CK13: 2 | CL13: 1 | CM13: 0 | CN13: 0 | CO13: 0 | CP13: 0 | CQ13: 0 | CR13: 0 | CS13: 4 | CT13: 0 | CU13: 0 | CV13: 0 | CW13: 0 | CX13: 1 | CY13: 0 | CZ13: 0 | DA13: 0 | DB13: 6 | DC13: 0 | DD13: 0 | DE13: 0 | DF13: 1 | DG13: 1 | DH13: 6
A14: POWC 0103 Orthopaedic referral | C14: 1 | D14: 3 | E14: 5 | F14: 0 | G14: 2 | H14: 3 | I14: 5 | J14: 2 | K14: 0 | L14: 0 | M14: 0 | N14: 0 | O14: 0 | P14: 0 | Q14: 1 | R14: 2 | S14: 1 | T14: 4 | U14: 0 | V14: 1 | W14: 1 | X14: 4 | Y14: 0 | Z14: 0 | AA14: 0 | AB14: 0 | AC14: 0 | AD14: 0 | AE14: 2 | AF14: 0 | AG14: 0 | AH14: 2 | AI14: 0 | AJ14: 0 | AK14: 1 | AL14: 0 | AM14: 0 | AN14: 1 | AO14: 0 | AP14: 0 | AQ14: 0 | AR14: 0 | AS14: 0 | AT14: 0 | AU14: 1 | AV14: 0 | AW14: 0 | AX14: 5 | AY14: 1 | AZ14: 0 | BA14: 0 | BB14: 0 | BC14: 0 | BD14: 1 | BE14: 9 | BF14: 0 | BG14: 0 | BH14: 0 | BI14: 0 | BJ14: 1 | BK14: 0 | BL14: 0 | BM14: 0 | BN14: 0 | BO14: 1 | BP14: 0 | BQ14: 8 | BR14: 8 | BS14: 2 | BT14: 5 | BU14: 7 | BV14: 5 | BW14: 0 | BX14: 5 | BY14: 2 | BZ14: 4 | CA14: 1 | CB14: 0 | CC14: 1 | CD14: 0 | CE14: 0 | CF14: 0 | CG14: 10 | CH14: 3 | CI14: 7 | CJ14: 1 | CK14: 5 | CL14: 3 | CM14: 0 | CN14: 0 | CO14: 2 | CP14: 0 | CQ14: 6 | CR14: 0 | CS14: 8 | CT14: 0 | CU14: 0 | CV14: 0 | CW14: 3 | CX14: 2 | CY14: 1 | CZ14: 1 | DA14: 1 | DB14: 4 | DC14: 0 | DD14: 0 | DE14: 1 | DF14: 3 | DG14: 0 | DH14: 8
A15: POWC 0104 Advice given about wound care | C15: 33 | D15: 0 | E15: 10 | F15: 1 | G15: 2 | H15: 9 | I15: 1 | J15: 1 | K15: 0 | L15: 0 | M15: 0 | N15: 0 | O15: 1 | P15: 7 | Q15: 1 | R15: 0 | S15: 0 | T15: 0 | U15: 0 | V15: 1 | W15: 0 | X15: 0 | Y15: 0 | Z15: 0 | AA15: 2 | AB15: 0 | AC15: 0 | AD15: 3 | AE15: 0 | AF15: 0 | AG15: 2 | AH15: 1 | AI15: 0 | AJ15: 0 | AK15: 0 | AL15: 0 | AM15: 0 | AN15: 12 | AO15: 0 | AP15: 0 | AQ15: 0 | AR15: 0 | AS15: 0 | AT15: 0 | AU15: 4 | AV15: 1 | AW15: 0 | AX15: 0 | AY15: 0 | AZ15: 0 | BA15: 0 | BB15: 2 | BC15: 1 | BD15: 2 | BE15: 24 | BF15: 0 | BG15: 0 | BH15: 0 | BI15: 0 | BJ15: 1 | BK15: 0 | BL15: 0 | BM15: 12 | BN15: 0 | BO15: 0 | BP15: 0 | BQ15: 123 | BR15: 49 | BS15: 0 | BT15: 3 | BU15: 0 | BV15: 44 | BW15: 0 | BX15: 61 | BY15: 16 | BZ15: 5 | CA15: 2 | CB15: 0 | CC15: 42 | CD15: 0 | CE15: 0 | CF15: 1 | CG15: 44 | CH15: 2 | CI15: 10 | CJ15: 5 | CK15: 5 | CL15: 16 | CM15: 0 | CN15: 0 | CO15: 4 | CP15: 0 | CQ15: 23 | CR15: 7 | CS15: 0 | CT15: 9 | CU15: 3 | CV15: 1 | CW15: 0 | CX15: 12 | CY15: 2 | CZ15: 3 | DA15: 1 | DB15: 43 | DC15: 0 | DD15: 2 | DE15: 0 | DF15: 2 | DG15: 2 | DH15: 83
A16: POWC 01 Post-operative wound care Activity | C16: =IFERROR(VLOOKUP(C8,$A$23:$B$118,2,FALSE),0) -> 107 | D16: =IFERROR(VLOOKUP(D8,$A$23:$B$118,2,FALSE),0) -> 24 | E16: 42 | F16: 11 | G16: 26 | H16: 45 | I16: 38 | J16: 69 | K16: 2 | L16: 6 | M16: 18 | N16: 8 | O16: 49 | P16: 16 | Q16: 3 | R16: 130 | S16: 106 | T16: 32 | U16: 4 | V16: 19 | W16: 6 | X16: 60 | Y16: 0 | Z16: 10 | AA16: 16 | AB16: 4 | AC16: 0 | AD16: 3 | AE16: 27 | AF16: 6 | AG16: 11 | AH16: 17 | AI16: 1 | AJ16: 8 | AK16: 2 | AL16: 5 | AM16: 1 | AN16: 93 | AO16: 0 | AP16: 0 | AQ16: 2 | AR16: 0 | AS16: 8 | AT16: 5 | AU16: 13 | AV16: 3 | AW16: 0 | AX16: 134 | AY16: 3 | AZ16: 3 | BA16: 0 | BB16: 7 | BC16: 7 | BD16: 30 | BE16: 197 | BF16: 0 | BG16: 0 | BH16: 4 | BI16: 2 | BJ16: 7 | BK16: 8 | BL16: 0 | BM16: 37 | BN16: 0 | BO16: 13 | BP16: =IFERROR(VLOOKUP(BP8,$A$23:$B$118,2,FALSE),0) -> 2 | BQ16: 718 | BR16: 59 | BS16: 26 | BT16: 102 | BU16: 65 | BV16: 46 | BW16: 0 | BX16: 206 | BY16: 73 | BZ16: 56 | CA16: 87 | CB16: 2 | CC16: 110 | CD16: 8 | CE16: 0 | CF16: 6 | CG16: 240 | CH16: 12 | CI16: 103 | CJ16: 17 | CK16: 34 | CL16: 27 | CM16: 1 | CN16: 6 | CO16: 25 | CP16: 13 | CQ16: 92 | CR16: 27 | CS16: 232 | CT16: 39 | CU16: 21 | CV16: 2 | CW16: 35 | CX16: 19 | CY16: 46 | CZ16: 8 | DA16: 9 | DB16: 91 | DC16: 0 | DD16: 5 | DE16: 19 | DF16: 27 | DG16: 16 | DH16: 258
A23: F86008 | B23: 59
A24: F86010 | B24: 102
A25: F86012 | B25: 65
A26: F86020 | B26: 46
A27: F86023 | B27: 206
A28: F86028 | B28: 73
A29: F86032 | B29: 56
A30: F86042 | B30: 110
A31: F86064 | B31: 6
A32: F86066 | B32: 240
A33: F86081 | B33: 12
A34: F86083 | B34: 103
A35: F86085 | B35: 17
A36: F86087 | B36: 34
A37: F86612 | B37: 27
A38: F86637 | B38: 6
A39: F86641 | B39: 25
A40: F86642 | B40: 13
A41: F86652 | B41: 92
A42: F86691 | B42: 232
A43: F86692 | B43: 39
A44: F86698 | B44: 21
A45: F86703 | B45: 35
A46: F86731 | B46: 46
A47: Y00090 | B47: 8
A48: Y02987 | B48: 258
A49: F86707 | B49: 19
A50: Y00918 | B50: 91
A51: F86009 | B51: 26
A52: F86007 | B52: 718
A53: F86057 | B53: 8
A54: F86658 | B54: 27
A55: F86034 | B55: 87
A56: F86624 | B56: 1
A57: F86702 | B57: 2
A58: F82607 | B58: 93
A59: F82045 | B59: 1
A60: F82017 | B60: 130
A61: F82003 | B61: 42
A62: F82039 | B62: 6
A63: F82012 | B63: 18
A64: F82011 | B64: 6
A65: Y01719 | B65: 5
A66: F82030 | B66: 16
A67: F82612 | B67: 2
A68: F82010 | B68: 2
A69: F82055 | B69: 5
A70: F82649 | B70: 7
A71: Y00312 | B71: 9
A72: F82025 | B72: 60
A73: F82053 | B73: 2
A74: F82642 | B74: 3
A75: F82002 | B75: 24
A76: F82627 | B76: 3
A77: F82014 | B77: 49
A78: F82022 | B78: 19
A79: F82021 | B79: 4
A80: F82018 | B80: 106
A81: F82650 | B81: 30
A82: F82005 | B82: 11
A83: F82666 | B83: 4
A84: F82031 | B84: 4
A85: Y01795 | B85: 19
A86: F82660 | B86: 197
A87: F82625 | B87: 13
A88: F82001 | B88: 107
A89: F82040 | B89: 11
A90: F82007 | B90: 45
A91: F82008 | B91: 38
A92: F82006 | B92: 26
A93: F82621 | B93: 8
A94: F82023 | B94: 6
A95: F82042 | B95: 17
A96: F82670 | B96: 2
A97: F82016 | B97: 3
A98: F82034 | B98: 3
A99: F82671 | B99: 7
A100: F82638 | B100: 3
A101: F82015 | B101: 16
A102: F82686 | B102: 2
A103: F82648 | B103: 7
A104: Y02575 | B104: 27
A105: F82038 | B105: 27
A106: F82624 | B106: 5
A107: F82604 | B107: 1
A108: Y02973 | B108: 16
A109: F82679 | B109: 13
A110: F82009 | B110: 69
A111: F86040 | B111: 2
A112: F82677 | B112: 37
A113: F82013 | B113: 8
A114: F82674 | B114: 8
A115: F82634 | B115: 134
A116: F82028 | B116: 10
A117: F82051 | B117: 8
A118: F82019 | B118: 32

Sheet Other Data
B2: Y00155 | C2: F86082 | D2: F86025 | E2: F86013 | F2: F86657
A4: Currently Registered Regular Patients | B4: =VLOOKUP(B$2,Sheet2!$B$4:$H$9,MATCH('Other Data'!$A4,Sheet2!$B$4:$H$4,0),FALSE) -> 9675 | C4: =VLOOKUP(C$2,Sheet2!$B$4:$H$9,MATCH('Other Data'!$A4,Sheet2!$B$4:$H$4,0),FALSE) -> 6040 | D4: =VLOOKUP(D$2,Sheet2!$B$4:$H$9,MATCH('Other Data'!$A4,Sheet2!$B$4:$H$4,0),FALSE) -> 17281 | E4: =VLOOKUP(E$2,Sheet2!$B$4:$H$9,MATCH('Other Data'!$A4,Sheet2!$B$4:$H$4,0),FALSE) -> 7165 | F4: =VLOOKUP(F$2,Sheet2!$B$4:$H$9,MATCH('Other Data'!$A4,Sheet2!$B$4:$H$4,0),FALSE) -> 8166
A5: POWC 01 Post-operative wound care 2022 | B5: =VLOOKUP(B$2,Sheet2!$B$4:$H$9,MATCH('Other Data'!$A5,Sheet2!$B$4:$H$4,0),FALSE) -> 1 | C5: =VLOOKUP(C$2,Sheet2!$B$4:$H$9,MATCH('Other Data'!$A5,Sheet2!$B$4:$H$4,0),FALSE) -> 13 | D5: =VLOOKUP(D$2,Sheet2!$B$4:$H$9,MATCH('Other Data'!$A5,Sheet2!$B$4:$H$4,0),FALSE) -> 55 | E5: =VLOOKUP(E$2,Sheet2!$B$4:$H$9,MATCH('Other Data'!$A5,Sheet2!$B$4:$H$4,0),FALSE) -> 12 | F5: =VLOOKUP(F$2,Sheet2!$B$4:$H$9,MATCH('Other Data'!$A5,Sheet2!$B$4:$H$4,0),FALSE) -> 16
A6: POWC 01 Post-operative wound care activity | B6: =VLOOKUP(B$2,Sheet2!$B$4:$H$9,MATCH('Other Data'!$A6,Sheet2!$B$4:$H$4,0),FALSE) ->  | C6: =VLOOKUP(C$2,Sheet2!$B$4:$H$9,MATCH('Other Data'!$A6,Sheet2!$B$4:$H$4,0),FALSE) ->  | D6: =VLOOKUP(D$2,Sheet2!$B$4:$H$9,MATCH('Other Data'!$A6,Sheet2!$B$4:$H$4,0),FALSE) ->  | E6: =VLOOKUP(E$2,Sheet2!$B$4:$H$9,MATCH('Other Data'!$A6,Sheet2!$B$4:$H$4,0),FALSE) ->  | F6: =VLOOKUP(F$2,Sheet2!$B$4:$H$9,MATCH('Other Data'!$A6,Sheet2!$B$4:$H$4,0),FALSE) -> 
A7: POWC 0101 Referral to tissue viability service | B7: =VLOOKUP(B$2,Sheet2!$B$4:$H$9,MATCH('Other Data'!$A7,Sheet2!$B$4:$H$4,0),FALSE) ->  | C7: =VLOOKUP(C$2,Sheet2!$B$4:$H$9,MATCH('Other Data'!$A7,Sheet2!$B$4:$H$4,0),FALSE) ->  | D7: =VLOOKUP(D$2,Sheet2!$B$4:$H$9,MATCH('Other Data'!$A7,Sheet2!$B$4:$H$4,0),FALSE) ->  | E7: =VLOOKUP(E$2,Sheet2!$B$4:$H$9,MATCH('Other Data'!$A7,Sheet2!$B$4:$H$4,0),FALSE) ->  | F7: =VLOOKUP(F$2,Sheet2!$B$4:$H$9,MATCH('Other Data'!$A7,Sheet2!$B$4:$H$4,0),FALSE) -> 
A8: POWC 0102 Refer to district nurse | B8: =VLOOKUP(B$2,Sheet2!$B$4:$H$9,MATCH('Other Data'!$A8,Sheet2!$B$4:$H$4,0),FALSE) -> 0 | C8: =VLOOKUP(C$2,Sheet2!$B$4:$H$9,MATCH('Other Data'!$A8,Sheet2!$B$4:$H$4,0),FALSE) -> 0 | D8: =VLOOKUP(D$2,Sheet2!$B$4:$H$9,MATCH('Other Data'!$A8,Sheet2!$B$4:$H$4,0),FALSE) -> 2 | E8: =VLOOKUP(E$2,Sheet2!$B$4:$H$9,MATCH('Other Data'!$A8,Sheet2!$B$4:$H$4,0),FALSE) -> 1 | F8: =VLOOKUP(F$2,Sheet2!$B$4:$H$9,MATCH('Other Data'!$A8,Sheet2!$B$4:$H$4,0),FALSE) -> 0
A9: POWC 0103 Orthopaedic referral | B9: =VLOOKUP(B$2,Sheet2!$B$4:$H$9,MATCH('Other Data'!$A9,Sheet2!$B$4:$H$4,0),FALSE) -> 0 | C9: =VLOOKUP(C$2,Sheet2!$B$4:$H$9,MATCH('Other Data'!$A9,Sheet2!$B$4:$H$4,0),FALSE) -> 0 | D9: =VLOOKUP(D$2,Sheet2!$B$4:$H$9,MATCH('Other Data'!$A9,Sheet2!$B$4:$H$4,0),FALSE) -> 1 | E9: =VLOOKUP(E$2,Sheet2!$B$4:$H$9,MATCH('Other Data'!$A9,Sheet2!$B$4:$H$4,0),FALSE) -> 0 | F9: =VLOOKUP(F$2,Sheet2!$B$4:$H$9,MATCH('Other Data'!$A9,Sheet2!$B$4:$H$4,0),FALSE) -> 0
A10: POWC 0104 Advice given about wound care | B10: =VLOOKUP(B$2,Sheet2!$B$4:$H$9,MATCH('Other Data'!$A10,Sheet2!$B$4:$H$4,0),FALSE) -> 0 | C10: =VLOOKUP(C$2,Sheet2!$B$4:$H$9,MATCH('Other Data'!$A10,Sheet2!$B$4:$H$4,0),FALSE) -> 13 | D10: =VLOOKUP(D$2,Sheet2!$B$4:$H$9,MATCH('Other Data'!$A10,Sheet2!$B$4:$H$4,0),FALSE) -> 55 | E10: =VLOOKUP(E$2,Sheet2!$B$4:$H$9,MATCH('Other Data'!$A10,Sheet2!$B$4:$H$4,0),FALSE) -> 0 | F10: =VLOOKUP(F$2,Sheet2!$B$4:$H$9,MATCH('Other Data'!$A10,Sheet2!$B$4:$H$4,0),FALSE) -> 0
A22: Row Labels | B22: Sum of Q4 Activity | C22: Sum of Q4 Patients | D22: Sum of #Tissue viability nurseQ4 | E22: Sum of #Refer to district nurseQ4 | F22: Sum of #Orthopaedic referralQ4 | G22: Sum of #Advice given about wound careQ4
A23: F86007 | B23: 57 | C23: 57 | D23: 0 | E23: 2 | F23: 1 | G23: 2
A24: F86057 | B24: 8 | C24: 8 | D24: 0 | E24: 0 | F24: 4 | G24: 0
A25: Grand Total | B25: 65 | C25: 65 | D25: 0 | E25: 2 | F25: 5 | G25: 2
A29: Folder Path.2.1 | B29: Currently Registered Regular Patients | C29: L&D Population | D29: Q1 POWC 01 Post-operative wound care 2019-20 | E29: Q1 POWC 0101 Referral to tissue viability service | F29: Q1 POWC 0102 Refer to district nurse | G29: Q1 POWC 0103 Orthopaedic referral | H29: Q1 POWC 0104 Advice given about wound care | I29: Q2 POWC 01 Post-operative wound care 2019-20 | J29: Q2 POWC 0101 Referral to tissue viability service | K29: Q2 POWC 0102 Refer to district nurse | L29: Q2 POWC 0103 Orthopaedic referral | M29: Q2 POWC 0104 Advice given about wound care | N29: Q3 POWC 01 Post-operative wound care 2019-20 | O29: Q3 POWC 0101 Referral to tissue viability service | P29: Q3 POWC 0102 Refer to district nurse | Q29: Q3 POWC 0103 Orthopaedic referral | R29: Q3 POWC 0104 Advice given about wound care | S29: Q4 POWC 01 Post-operative wound care 2019-20 | T29: Q4 POWC 0101 Referral to tissue viability service | U29: Q4 POWC 0102 Refer to district nurse | V29: Q4 POWC 0103 Orthopaedic referral | W29: Q4 POWC 0104 Advice given about wound care | X29: POWC 01 Post-operative wound care activity
A30: F86013 | B30: 6609 | C30: 14476 | D30: 24 | E30: 0 | F30: 0 | G30: 0 | H30: 24 | I30: 18 | J30: 0 | K30: 1 | L30: 2 | M30: 18 | N30: 21 | O30: 0 | P30: 1 | Q30: 0 | R30: 20 | S30: 21 | T30: 0 | U30: 0 | V30: 0 | W30: 18 | X30: 21
A31: F86025 | B31: 16678 | C31: 29177 | D31: 39 | E31: 0 | F31: 2 | G31: 1 | H31: 38 | I31: 34 | J31: 0 | K31: 0 | L31: 0 | M31: 34 | N31: 34 | O31: 0 | P31: 1 | Q31: 0 | R31: 34 | S31: 35 | T31: 0 | U31: 0 | V31: 0 | W31: 31 | X31: 35
A32: F86082 | B32: 5553 | C32: 12616 | D32: 13 | E32: 0 | F32: 0 | G32: 0 | H32: 0 | I32: 12 | J32: 0 | K32: 0 | L32: 0 | M32: 1 | N32: 8 | O32: 0 | P32: 1 | Q32: 0 | R32: 2 | S32: 8 | T32: 0 | U32: 0 | V32: 0 | W32: 2 | X32: 8
A33: F86657 | B33: 8351 | C33: 16711 | D33: 8 | E33: 0 | F33: 0 | G33: 0 | H33: 0 | I33: 15 | J33: 0 | K33: 0 | L33: 0 | M33: 0 | N33: 11 | O33: 0 | P33: 0 | Q33: 0 | R33: 1 | S33: 15 | T33: 0 | U33: 0 | V33: 0 | W33: 0 | X33: 15
A34: F86658 | B34: 4939 | C34: 7544 | D34: 4 | E34: 0 | F34: 1 | G34: 0 | H34: 0 | I34: 9 | J34: 0 | K34: 0 | L34: 0 | M34: 0 | N34: 7 | O34: 0 | P34: 0 | Q34: 0 | R34: 1 | S34: 8 | T34: 0 | U34: 0 | V34: 0 | W34: 1
A35: Y00155 | B35: 9062 | C35: 21226 | D35: 10 | E35: 0 | F35: 0 | G35: 0 | H35: 10 | I35: 31 | J35: 0 | K35: 0 | L35: 0 | M35: 30 | N35: 23 | O35: 0 | P35: 0 | Q35: 0 | R35: 21 | S35: 20 | T35: 0 | U35: 0 | V35: 0 | W35: 20 | X35: 20

Sheet Control Panel
A1: 2020-01-01 | E1: Search Title | F1: Report Title
E2: Currently Registered Regular Patients | F2: Currently Registered Regular Patients
E3: POWC 01 Post-operative wound care 2022 | F3: Patients with Post-operative wound care 2022-23
F4: Patients per 1000 patients
A5: RB-1 | B5: Cranbrook | E5: POWC 01 Post-operative wound care activity | F5: Post-operative wound care activity recorded 2022-23
A6: RB-2 | B6: Fairlop | F6: Activity per patient
A7: RB-3 | B7: Seven Kings | E7: POWC 0101 Referral to tissue viability service | F7: Referral to tissue viability service
A8: RB-4 | B8: Wanstead & Woodford | E8: POWC 0102 Refer to district nurse | F8: Refer to district nurse
A9: RB-5 | B9: Loxford | E9: POWC 0103 Orthopaedic referral | F9: Orthopaedic referral
A10: RB-6 | B10: NewCross Alliance | E10: POWC 0104 Advice given about wound care | F10: Advice given about wound care
A12: F86652 | B12: Drive Surgery | C12: RB | D12: Redbridge | E12: RB-1 | F12: Cranbrook
A13: F86702 | B13: St Clements Surgery | C13: RB | D13: Redbridge | E13: RB-1 | F13: Cranbrook
A14: Y00918 | B14: Granville Medical Centre | C14: RB | D14: Redbridge | E14: RB-1 | F14: Cranbrook
A15: F86042 | B15: Balfour Road Surgery | C15: RB | D15: Redbridge | E15: RB-1 | F15: Cranbrook
A16: F86698 | B16: Cranbrook Surgery | C16: RB | D16: Redbridge | E16: RB-1 | F16: Cranbrook
A17: F86008 | B17: Gants Hill Medical Centre | C17: RB | D17: Redbridge | E17: RB-1 | F17: Cranbrook
A18: F86703 | B18: Redbridge Surgery | C18: RB | D18: Redbridge | E18: RB-1 | F18: Cranbrook
A19: F86657 | B19: York Road Surgery | C19: RB | D19: Redbridge | E19: RB-1 | F19: Cranbrook
A20: F86081 | B20: Kenwood Medical Centre | C20: RB | D20: Redbridge | E20: RB-2 | F20: Fairlop
A21: F86083 | B21: Eastern Avenue Medical Centre | C21: RB | D21: Redbridge | E21: RB-2 | F21: Fairlop
A22: F86612 | B22: Fullwell Avenue Surgery | C22: RB | D22: Redbridge | E22: RB-2 | F22: Fairlop
A23: F86624 | B23: Heathcote Primary Care Centre | C23: RB | D23: Redbridge | E23: RB-2 | F23: Fairlop
A24: F86707 | B24: Fencepiece Road Medical Practice | C24: RB | D24: Redbridge | E24: RB-2 | F24: Fairlop
A25: F86057 | B25: The Willows Practice | C25: RB | D25: Redbridge | E25: RB-2 | F25: Fairlop
A26: F86007 | B26: Forest Edge Practice | C26: RB | D26: Redbridge | E26: RB-2 | F26: Fairlop
A27: F86009 | B27: The Palms Medical Centre | C27: RB | D27: Redbridge | E27: RB-3 | F27: Seven Kings
A28: F86087 | B28: Goodmayes Medical Centre | C28: RB | D28: Redbridge | E28: RB-3 | F28: Seven Kings
A29: F86637 | B29: Seven Kings Practice | C29: RB | D29: Redbridge | E29: RB-3 | F29: Seven Kings
A30: Y00090 | B30: Doctor's House | C30: RB | D30: Redbridge | E30: RB-3 | F30: Seven Kings
A31: F86034 | B31: Green Lane, Goodmayes Medical practice | C31: RB | D31: Redbridge | E31: RB-3 | F31: Seven Kings
A32: F86642 | B32: Castleton Road Surgery | C32: RB | D32: Redbridge | E32: RB-3 | F32: Seven Kings
A33: F86028 | B33: Chadwell Heath Surgery | C33: RB | D33: Redbridge | E33: RB-3 | F33: Seven Kings
A34: Y00155 | B34: Grove Surgery | C34: RB | D34: Redbridge | E34: RB-3 | F34: Seven Kings
A35: F86013 | B35: Broadway Surgery | C35: RB | D35: Redbridge | E35: RB-4 | F35: Wanstead & Woodford
A36: F86023 | B36: The Evergreen Practice | C36: RB | D36: Redbridge | E36: RB-4 | F36: Wanstead & Woodford
A37: F86032 | B37: Wanstead Place Surgery | C37: RB | D37: Redbridge | E37: RB-4 | F37: Wanstead & Woodford
A38: F86731 | B38: Aldersbrook Medical Centre | C38: RB | D38: Redbridge | E38: RB-4 | F38: Wanstead & Woodford
A39: F86066 | B39: Southdene Surgery | C39: RB | D39: Redbridge | E39: RB-4 | F39: Wanstead & Woodford
A40: F86641 | B40: Shrubberies Medical Centre | C40: RB | D40: Redbridge | E40: RB-4 | F40: Wanstead & Woodford
A41: F86020 | B41: Glebelands Practice | C41: RB | D41: Redbridge | E41: RB-4 | F41: Wanstead & Woodford
A42: F86064 | B42: Elmhurst Practice | C42: RB | D42: Redbridge | E42: RB-4 | F42: Wanstead & Woodford
A43: F86691 | B43: Clayhall Clinic | C43: RB | D43: Redbridge | E43: RB-4 | F43: Wanstead & Woodford
A44: F86012 | B44: Rydal Practice | C44: RB | D44: Redbridge | E44: RB-4 | F44: Wanstead & Woodford
A45: F86658 | B45: Queen Mary Practice | C45: RB | D45: Redbridge | E45: RB-4 | F45: Wanstead & Woodford
A46: F86022 | B46: Ilford Medical Centre | C46: RB | D46: Redbridge | E46: RB-5 | F46: Loxford
A47: Y02987 | B47: The Practice Loxford | C47: RB | D47: Redbridge | E47: RB-5 | F47: Loxford
A48: F86692 | B48: Mathukias Surgery | C48: RB | D48: Redbridge | E48: RB-5 | F48: Loxford
A49: F86082 | B49: Ilford Lane Surgery | C49: RB | D49: Redbridge | E49: RB-5 | F49: Loxford
A50: F86025 | B50: Oak Tree Medical Practice | C50: RB | D50: Redbridge | E50: RB-5 | F50: Loxford
A51: F86085 | B51: Hainault Surgery | C51: RB | D51: Redbridge | E51: RB-6 | F51: NewCross Alliance
A52: F86010 | B52: Fullwell Cross Medical Centre | C52: RB | D52: Redbridge | E52: RB-6 | F52: NewCross Alliance
A53: F86060 | B53: Newbury Group Practice | C53: RB | D53: Redbridge | E53: RB-6 | F53: NewCross Alliance

Sheet RB
A1: Rel_D | B1: Practice | C1: OrgID | D1: Currently Registered Regular Patients | E1: L&D Population | F1: POWC 0102 Refer to district nurse | G1: POWC 0103 Orthopaedic referral | H1: POWC 0104 Advice given about wound care | I1: POWC 01 Post-operative wound care 2021
A2: 2022-01-01 | B2: Grove Surgery | C2: Y00155 | D2: 9725 | E2: 14560
A3: 2022-01-01 | B3: Ilford Lane Surgery | C3: F86082 | D3: 6028 | E3: 9450 | H3: 1 | I3: 7
A4: 2022-01-01 | B4: Oak Tree Medical Practice | C4: F86025 | D4: 17422 | E4: 22981 | F4: 1 | G4: 1 | H4: 1 | I4: 13
A5: 2022-01-01 | B5: The Broadway Surgery | C5: F86013 | D5: 7186 | E5: 11175 | I5: 7
A6: 2022-01-01 | B6: York Surgery | C6: F86657 | D6: 8202 | E6: 13352 | I6: 7

Sheet Sheet2
B4: OrgID | C4: Currently Registered Regular Patients | D4: L&D Population | E4: POWC 0102 Refer to district nurse | F4: POWC 0103 Orthopaedic referral | G4: POWC 0104 Advice given about wound care | H4: POWC 01 Post-operative wound care 2022
B5: Y00155 | C5: 9675 | D5: 14536 | H5: 1
B6: F86082 | C6: 6040 | D6: 9448 | G6: 13 | H6: 13
B7: F86025 | C7: 17281 | D7: 22874 | E7: 2 | F7: 1 | G7: 55 | H7: 55
B8: F86013 | C8: 7165 | D8: 11144 | E8: 1 | H8: 12
B9: F86657 | C9: 8166 | D9: 13324 | H9: 16
B14: F86692 | C14: =COUNTIF($B$14:$B$669,B14) -> 1
B15: F86009 | C15: 14
B16: F86642 | C16: 3
B17: F86060 | C17: 1
B18: F86087 | C18: 6
B19: F86087 | C19: 6
B20: F86007 | C20: 88
B21: Y02987 | C21: 67
B22: F86028 | C22: 19
B23: F86081 | C23: 5
B24: F86707 | C24: 13
B25: F86707 | C25: 13
B26: F86637 | C26: 3
B27: F86637 | C27: 3
B28: F86057 | C28: 10
B29: F86007 | C29: 88
B30: F86637 | C30: 3
B31: F86057 | C31: 10
B32: F86703 | C32: 14
B33: F86703 | C33: 14
B34: F86703 | C34: 14
B35: F86703 | C35: 14
B36: F86652 | C36: 7
B37: F86658 | C37: 2
B38: F86087 | C38: 6
B39: F86087 | C39: 6
B40: F86087 | C40: 6
B41: F86023 | C41: 54
B42: F86023 | C42: 54
B43: F86023 | C43: 54
B44: F86081 | C44: 5
B45: F86083 | C45: 11
B46: F86020 | C46: 12
B47: F86642 | C47: 3
B48: F86642 | C48: 3
B49: F86083 | C49: 11
B50: F86083 | C50: 11
B51: F86083 | C51: 11
B52: F86083 | C52: 11
B53: F86641 | C53: 8
B54: F86012 | C54: 24
B55: F86012 | C55: 24
B56: F86707 | C56: 13
B57: F86707 | C57: 13
B58: F86087 | C58: 6
B59: F86691 | C59: 19
B60: F86066 | C60: 47
B61: F86066 | C61: 47
B62: F86066 | C62: 47
B63: F86008 | C63: 22
B64: F86083 | C64: 11
B65: F86083 | C65: 11
B66: F86028 | C66: 19
B67: F86028 | C67: 19
B68: F86057 | C68: 10
B69: F86731 | C69: 11
B70: F86731 | C70: 11
B71: F86731 | C71: 11
B72: F86731 | C72: 11
B73: F86731 | C73: 11
B74: F86731 | C74: 11
B75: F86731 | C75: 11
B76: F86066 | C76: 47
B77: F86085 | C77: 6
B78: F86020 | C78: =COUNTIF($B$14:$B$669,B78) -> 12
B79: F86020 | C79: 12
B80: F86020 | C80: 12
B81: F86020 | C81: 12
B82: F86020 | C82: 12
B83: F86020 | C83: 12
B84: F86020 | C84: 12
B85: F86020 | C85: 12
B86: F86020 | C86: 12
B87: F86020 | C87: 12
B88: F86020 | C88: 12
B89: F86698 | C89: 4
B90: F86698 | C90: 4
B91: F86698 | C91: 4
B92: F86066 | C92: 47
B93: F86083 | C93: 11
B94: F86083 | C94: 11
B95: F86083 | C95: 11
B96: F86731 | C96: 11
B97: F86731 | C97: 11
B98: Y02987 | C98: 67
B99: Y02987 | C99: 67
B100: Y02987 | C100: 67
B101: F86081 | C101: 5
B102: F86081 | C102: 5
B103: F86081 | C103: 5
B104: F86731 | C104: 11
B105: F86731 | C105: 11
B106: F86023 | C106: 54
B107: F86023 | C107: 54
B108: F86023 | C108: 54
B109: F86023 | C109: 54
B110: F86023 | C110: 54
B111: F86023 | C111: 54
B112: F86612 | C112: 4
B113: F86612 | C113: 4
B114: F86612 | C114: 4
B115: F86612 | C115: 4
B116: F86707 | C116: 13
B117: F86707 | C117: 13
B118: F86707 | C118: 13
B119: F86707 | C119: 13
B120: F86707 | C120: 13
B121: F86707 | C121: 13
B122: F86707 | C122: 13
B123: F86707 | C123: 13
B124: F86707 | C124: 13
B125: F86028 | C125: 19
B126: F86028 | C126: 19
B127: F86028 | C127: 19
B128: F86028 | C128: 19
B129: F86028 | C129: 19
B130: F86028 | C130: 19
B131: F86028 | C131: 19
B132: F86028 | C132: 19
B133: F86028 | C133: 19
B134: F86028 | C134: 19
B135: F86028 | C135: 19
B136: F86028 | C136: 19
B137: F86028 | C137: 19
B138: F86028 | C138: 19
B139: F86028 | C139: 19
B140: F86028 | C140: 19
B141: F86057 | C141: 10
B142: F86057 | C142: =COUNTIF($B$14:$B$669,B142) -> 10
B143: F86057 | C143: 10
B144: F86057 | C144: 10
B145: F86007 | C145: 88
B146: F86007 | C146: 88
B147: F86641 | C147: 8
B148: F86641 | C148: 8
B149: F86641 | C149: 8
B150: F86641 | C150: 8
B151: Y00918 | C151: 19
B152: Y00918 | C152: 19
B153: Y00918 | C153: 19
B154: Y00918 | C154: 19
B155: Y00918 | C155: 19
B156: Y00918 | C156: 19
B157: Y00918 | C157: 19
B158: Y00918 | C158: 19
B159: Y00918 | C159: 19
B160: Y00918 | C160: 19
B161: Y00918 | C161: 19
B162: Y00918 | C162: 19
B163: Y00918 | C163: 19
B164: Y00918 | C164: 19
B165: F86064 | C165: 8
B166: F86064 | C166: 8
B167: F86698 | C167: 4
B168: F86032 | C168: 28
B169: Y00090 | C169: 4
B170: F86641 | C170: 8
B171: F86641 | C171: 8
B172: F86641 | C172: 8
B173: F86652 | C173: 7
B174: F86010 | C174: 21
B175: F86009 | C175: 14
B176: F86010 | C176: 21
B177: F86691 | C177: 19
B178: F86691 | C178: 19
B179: F86691 | C179: 19
B180: Y02987 | C180: 67
B181: Y02987 | C181: 67
B182: Y02987 | C182: 67
B183: Y02987 | C183: 67
B184: Y02987 | C184: 67
B185: Y02987 | C185: 67
B186: Y02987 | C186: 67
B187: Y02987 | C187: 67
B188: Y02987 | C188: 67
B189: Y02987 | C189: 67
B190: Y02987 | C190: 67
B191: Y02987 | C191: 67
B192: F86691 | C192: 19
B193: F86691 | C193: 19
B194: F86691 | C194: 19
B195: F86691 | C195: 19
B196: F86042 | C196: 23
B197: F86042 | C197: 23
B198: F86042 | C198: 23
B199: F86042 | C199: 23
B200: F86042 | C200: 23
B201: F86042 | C201: 23
B202: F86042 | C202: 23
B203: F86042 | C203: 23
B204: F86042 | C204: 23
B205: F86042 | C205: 23
B206: F86042 | C206: =COUNTIF($B$14:$B$669,B206) -> 23
B207: F86042 | C207: 23
... 384 more rows
